Workbook

Sheet ALESAGES
A1: ALESAGES | C1: ≤ 3 | D1: 3<D≤6 | E1: 6<D≤10 | F1: 10<D≤18 | G1: 18<D≤30 | H1: 30<D≤50 | I1: 50<D≤80 | J1: 80<D≤120 | K1: 120<D≤180 | L1: 180<D≤250 | M1: 250<D≤315 | N1: 315<D≤400 | O1: 400<D≤500
C2: 3 | D2: 6 | E2: 10 | F2: 18 | G2: 30 | H2: 50 | I2: 80 | J2: 120 | K2: 180 | L2: 250 | M2: 315 | N2: 400 | O2: 500
A3: D10 | B3: Maxi | C3: 0.06 | D3: 0.078 | E3: 0.098 | F3: 0.12 | G3: 0.149 | H3: 0.18 | I3: 0.22 | J3: 0.26 | K3: 0.305 | L3: 0.355 | M3: 0.4 | N3: 0.44 | O3: 0.48
B4: Mini | C4: 0.02 | D4: 0.03 | E4: 0.04 | F4: 0.05 | G4: 0.065 | H4: 0.08 | I4: 0.1 | J4: 0.12 | K4: 0.145 | L4: 0.17 | M4: 0.19 | N4: 0.21 | O4: 0.23
A5: F7 | B5: Maxi | C5: 0.016 | D5: 0.022 | E5: 0.028 | F5: 0.034 | G5: 0.041 | H5: 0.05 | I5: 0.06 | J5: 0.071 | K5: 0.083 | L5: 0.096 | M5: 0.108 | N5: 0.119 | O5: 0.131
B6: Mini | C6: 0.006 | D6: 0.01 | E6: 0.013 | F6: 0.016 | G6: 0.02 | H6: 0.025 | I6: 0.03 | J6: 0.036 | K6: 0.043 | L6: 0.05 | M6: 0.056 | N6: 0.062 | O6: 0.068
A7: G6 | B7: Maxi | C7: 0.008 | D7: 0.012 | E7: 0.014 | F7: 0.017 | G7: 0.02 | H7: 0.025 | I7: 0.029 | J7: 0.034 | K7: 0.039 | L7: 0.044 | M7: 0.049 | N7: 0.054 | O7: 0.06
B8: Mini | C8: 0.002 | D8: 0.004 | E8: 0.005 | F8: 0.006 | G8: 0.007 | H8: 0.009 | I8: 0.01 | J8: 0.012 | K8: 0.014 | L8: 0.015 | M8: 0.017 | N8: 0.018 | O8: 0.02
A9: H6 | B9: Maxi | C9: 0.006 | D9: 0.008 | E9: 0.009 | F9: 0.011 | G9: 0.013 | H9: 0.016 | I9: 0.019 | J9: 0.022 | K9: 0.025 | L9: 0.029 | M9: 0.032 | N9: 0.036 | O9: 0.04
B10: Mini | C10: 0 | D10: 0 | E10: 0 | F10: 0 | G10: 0 | H10: 0 | I10: 0 | J10: 0 | K10: 0 | L10: 0 | M10: 0 | N10: 0 | O10: 0
A11: H7 | B11: Maxi | C11: 0.01 | D11: 0.012 | E11: 0.015 | F11: 0.018 | G11: 0.021 | H11: 0.025 | I11: 0.03 | J11: 0.035 | K11: 0.04 | L11: 0.046 | M11: 0.052 | N11: 0.057 | O11: 0.063
B12: Mini | C12: 0 | D12: 0 | E12: 0 | F12: 0 | G12: 0 | H12: 0 | I12: 0 | J12: 0 | K12: 0 | L12: 0 | M12: 0 | N12: 0 | O12: 0
A13: H8 | B13: Maxi | C13: 0.014 | D13: 0.018 | E13: 0.022 | F13: 0.027 | G13: 0.033 | H13: 0.039 | I13: 0.046 | J13: 0.054 | K13: 0.063 | L13: 0.072 | M13: 0.081 | N13: 0.089 | O13: 0.097
B14: Mini | C14: 0 | D14: 0 | E14: 0 | F14: 0 | G14: 0 | H14: 0 | I14: 0 | J14: 0 | K14: 0 | L14: 0 | M14: 0 | N14: 0 | O14: 0
A15: H9 | B15: Maxi | C15: 0.025 | D15: 0.03 | E15: 0.036 | F15: 0.043 | G15: 0.052 | H15: 0.062 | I15: 0.074 | J15: 0.087 | K15: 0.1 | L15: 0.115 | M15: 0.13 | N15: 0.14 | O15: 0.155
B16: Mini | C16: 0 | D16: 0 | E16: 0 | F16: 0 | G16: 0 | H16: 0 | I16: 0 | J16: 0 | K16: 0 | L16: 0 | M16: 0 | N16: 0 | O16: 0
A17: H10 | B17: Maxi | C17: 0.04 | D17: 0.048 | E17: 0.058 | F17: 0.07 | G17: 0.084 | H17: 0.1 | I17: 0.12 | J17: 0.14 | K17: 0.16 | L17: 0.185 | M17: 0.21 | N17: 0.23 | O17: 0.25
B18: Mini | C18: 0 | D18: 0 | E18: 0 | F18: 0 | G18: 0 | H18: 0 | I18: 0 | J18: 0 | K18: 0 | L18: 0 | M18: 0 | N18: 0 | O18: 0
A19: H11 | B19: Maxi | C19: 0.06 | D19: 0.075 | E19: 0.09 | F19: 0.11 | G19: 0.13 | H19: 0.16 | I19: 0.19 | J19: 0.21 | K19: 0.25 | L19: 0.29 | M19: 0.32 | N19: 0.36 | O19: 0.4
B20: Mini | C20: 0 | D20: 0 | E20: 0 | F20: 0 | G20: 0 | H20: 0 | I20: 0 | J20: 0 | K20: 0 | L20: 0 | M20: 0 | N20: 0 | O20: 0
A21: H12 | B21: Maxi | C21: 0.1 | D21: 0.12 | E21: 0.15 | F21: 0.18 | G21: 0.21 | H21: 0.25 | I21: 0.3 | J21: 0.35 | K21: 0.4 | L21: 0.46 | M21: 0.52 | N21: 0.57 | O21: 0.63
B22: Mini | C22: 0 | D22: 0 | E22: 0 | F22: 0 | G22: 0 | H22: 0 | I22: 0 | J22: 0 | K22: 0 | L22: 0 | M22: 0 | N22: 0 | O22: 0
A23: H13 | B23: Maxi | C23: 0.14 | D23: 0.18 | E23: 0.22 | F23: 0.27 | G23: 0.33 | H23: 0.39 | I23: 0.46 | J23: 0.54 | K23: 0.63 | L23: 0.72 | M23: 0.81 | N23: 0.89 | O23: 0.97
B24: Mini | C24: 0 | D24: 0 | E24: 0 | F24: 0 | G24: 0 | H24: 0 | I24: 0 | J24: 0 | K24: 0 | L24: 0 | M24: 0 | N24: 0 | O24: 0
A25: J7 | B25: Maxi | C25: 0.004 | D25: 0.006 | E25: 0.008 | F25: 0.01 | G25: 0.012 | H25: 0.014 | I25: 0.018 | J25: 0.022 | K25: 0.026 | L25: 0.03 | M25: 0.036 | N25: 0.039 | O25: 0.043
B26: Mini | C26: -0.006 | D26: -0.006 | E26: -0.007 | F26: -0.008 | G26: -0.009 | H26: -0.011 | I26: -0.012 | J26: -0.013 | K26: -0.014 | L26: -0.016 | M26: -0.016 | N26: -0.018 | O26: -0.02
A27: JS13 | B27: Maxi | C27: 0.07 | D27: 0.09 | E27: 0.11 | F27: 0.135 | G27: 0.165 | H27: 0.195 | I27: 0.23 | J27: 0.27 | K27: 0.315 | L27: 0.36 | M27: 0.405 | N27: 0.445 | O27: 0.485
B28: Mini | C28: -0.07 | D28: -0.09 | E28: -0.11 | F28: -0.135 | G28: -0.165 | H28: -0.195 | I28: -0.23 | J28: -0.27 | K28: -0.315 | L28: -0.36 | M28: -0.405 | N28: -0.445 | O28: -0.485
A29: K6 | B29: Maxi | C29: 0 | D29: 0.002 | E29: 0.002 | F29: 0.002 | G29: 0.002 | H29: 0.003 | I29: 0.004 | J29: 0.004 | K29: 0.004 | L29: 0.005 | M29: 0.005 | N29: 0.007 | O29: 0.008
B30: Mini | C30: -0.006 | D30: -0.006 | E30: -0.007 | F30: -0.009 | G30: -0.011 | H30: -0.013 | I30: -0.015 | J30: -0.018 | K30: -0.021 | L30: -0.024 | M30: -0.027 | N30: -0.029 | O30: -0.032
A31: K7 | B31: Maxi | C31: 0 | D31: 0.003 | E31: 0.005 | F31: 0.006 | G31: 0.006 | H31: 0.007 | I31: 0.009 | J31: 0.01 | K31: 0.012 | L31: 0.013 | M31: 0.016 | N31: 0.017 | O31: 0.018
B32: Mini | C32: -0.01 | D32: -0.009 | E32: -0.01 | F32: -0.012 | G32: -0.015 | H32: -0.018 | I32: -0.021 | J32: -0.025 | K32: -0.028 | L32: -0.033 | M32: -0.036 | N32: -0.04 | O32: -0.045
A33: M7 | B33: Maxi | C33: -0.002 | D33: 0 | E33: 0 | F33: 0 | G33: 0 | H33: 0 | I33: 0 | J33: 0 | K33: 0 | L33: 0 | M33: 0 | N33: 0 | O33: 0
B34: Mini | C34: -0.012 | D34: -0.012 | E34: -0.015 | F34: -0.018 | G34: -0.021 | H34: -0.025 | I34: -0.03 | J34: -0.035 | K34: -0.04 | L34: -0.046 | M34: -0.052 | N34: -0.057 | O34: -0.063
A35: N7 | B35: Maxi | C35: -0.004 | D35: -0.004 | E35: -0.004 | F35: -0.005 | G35: -0.007 | H35: -0.008 | I35: -0.009 | J35: -0.01 | K35: -0.012 | L35: -0.014 | M35: -0.014 | N35: -0.016 | O35: -0.017
B36: Mini | C36: -0.014 | D36: -0.016 | E36: -0.019 | F36: -0.023 | G36: -0.028 | H36: -0.033 | I36: -0.039 | J36: -0.045 | K36: -0.052 | L36: -0.06 | M36: -0.066 | N36: -0.073 | O36: -0.08
A37: N9 | B37: Maxi | C37: -0.004 | D37: 0 | E37: 0 | F37: 0 | G37: 0 | H37: 0 | I37: 0 | J37: 0 | K37: 0 | L37: 0 | M37: 0 | N37: 0 | O37: 0
B38: Mini | C38: -0.029 | D38: -0.03 | E38: -0.036 | F38: -0.043 | G38: -0.052 | H38: -0.062 | I38: -0.074 | J38: -0.087 | K38: -0.1 | L38: -0.115 | M38: -0.13 | N38: -0.14 | O38: -0.155
A39: P6 | B39: Maxi | C39: -0.006 | D39: -0.009 | E39: -0.012 | F39: -0.015 | G39: -0.018 | H39: -0.021 | I39: -0.026 | J39: -0.03 | K39: -0.036 | L39: -0.041 | M39: -0.047 | N39: -0.051 | O39: -0.055
B40: Mini | C40: -0.012 | D40: -0.017 | E40: -0.021 | F40: -0.026 | G40: -0.031 | H40: -0.037 | I40: -0.045 | J40: -0.052 | K40: -0.061 | L40: -0.07 | M40: -0.079 | N40: -0.087 | O40: -0.095
A41: P7 | B41: Maxi | C41: -0.006 | D41: -0.008 | E41: -0.009 | F41: -0.011 | G41: -0.014 | H41: -0.017 | I41: -0.021 | J41: -0.024 | K41: -0.028 | L41: -0.033 | M41: -0.036 | N41: -0.041 | O41: -0.045
B42: Mini | C42: -0.016 | D42: -0.02 | E42: -0.024 | F42: -0.029 | G42: -0.035 | H42: -0.042 | I42: -0.051 | J42: -0.059 | K42: -0.068 | L42: -0.079 | M42: -0.088 | N42: -0.098 | O42: -0.108
A43: P9 | B43: Maxi | C43: -0.009 | D43: -0.012 | E43: -0.015 | F43: -0.018 | G43: -0.022 | H43: -0.026 | I43: -0.032 | J43: -0.037 | K43: -0.043 | L43: -0.05 | M43: -0.056 | N43: -0.062 | O43: -0.068
B44: Mini | C44: -0.031 | D44: -0.042 | E44: -0.051 | F44: -0.061 | G44: -0.074 | H44: -0.088 | I44: -0.106 | J44: -0.124 | K44: -0.143 | L44: -0.165 | M44: -0.186 | N44: -0.202 | O44: -0.223

Sheet Arbres
A1: Arbres | C1: ≤ 3 | D1: 3<D≤6 | E1: 6<D≤10 | F1: 10<D≤18 | G1: 18<D≤30 | H1: 30<D≤50 | I1: 50<D≤80 | J1: 80<D≤120 | K1: 120<D≤180 | L1: 180<D≤250 | M1: 250<D≤315 | N1: 315<D≤400 | O1: 400<D≤500
C2: 3 | D2: 6 | E2: 10 | F2: 18 | G2: 30 | H2: 50 | I2: 80 | J2: 120 | K2: 180 | L2: 250 | M2: 315 | N2: 400 | O2: 500
A3: a11 | B3: Maxi | C3: -0.27 | D3: -0.27 | E3: -0.28 | F3: -0.29 | G3: -0.3 | H3: -0.32 | I3: -0.36 | J3: -0.41 | K3: -0.58 | L3: -0.82 | M3: -1.05 | N3: -1.35 | O3: -1.65
B4: Mini | C4: -0.33 | D4: -0.345 | E4: -0.37 | F4: -0.4 | G4: -0.43 | H4: -0.47 | I4: -0.53 | J4: -0.6 | K4: -0.71 | L4: -0.95 | M4: -1.24 | N4: -1.56 | O4: -1.9
A5: c11 | B5: Maxi | C5: -0.06 | D5: -0.07 | E5: -0.08 | F5: -0.095 | G5: -0.11 | H5: -0.13 | I5: -0.15 | J5: -0.18 | K5: -0.23 | L5: -0.28 | M5: -0.33 | N5: -0.4 | O5: -0.48
B6: Mini | C6: -0.12 | D6: -0.145 | E6: -0.17 | F6: -0.205 | G6: -0.24 | H6: -0.28 | I6: -0.33 | J6: -0.39 | K6: -0.45 | L6: -0.53 | M6: -0.62 | N6: -0.72 | O6: -0.84
A7: d9 | B7: Maxi | C7: -0.02 | D7: -0.03 | E7: -0.04 | F7: -0.05 | G7: -0.065 | H7: -0.08 | I7: -0.1 | J7: -0.12 | K7: -0.145 | L7: -0.17 | M7: -0.19 | N7: -0.21 | O7: -0.23
B8: Mini | C8: -0.045 | D8: -0.06 | E8: -0.075 | F8: -0.093 | G8: -0.117 | H8: -0.142 | I8: -0.174 | J8: -0.207 | K8: -0.245 | L8: -0.285 | M8: -0.32 | N8: -0.35 | O8: -0.385
A9: d10 | B9: Maxi | C9: -0.02 | D9: -0.03 | E9: -0.04 | F9: -0.05 | G9: -0.065 | H9: -0.08 | I9: -0.1 | J9: -0.12 | K9: -0.145 | L9: -0.17 | M9: -0.19 | N9: -0.21 | O9: -0.23
B10: Mini | C10: -0.06 | D10: -0.078 | E10: -0.098 | F10: -0.12 | G10: -0.149 | H10: -0.18 | I10: -0.22 | J10: -0.25 | K10: -0.305 | L10: -0.355 | M10: -0.4 | N10: -0.44 | O10: -0.48
A11: d11 | B11: Maxi | C11: -0.02 | D11: -0.03 | E11: -0.04 | F11: -0.05 | G11: -0.065 | H11: -0.08 | I11: -0.1 | J11: -0.12 | K11: -0.145 | L11: -0.17 | M11: -0.19 | N11: -0.21 | O11: -0.23
B12: Mini | C12: -0.08 | D12: -0.105 | E12: -0.13 | F12: -0.16 | G12: -0.195 | H12: -0.24 | I12: -0.29 | J12: -0.34 | K12: -0.395 | L12: -0.46 | M12: -0.51 | N12: -0.57 | O12: -0.63
A13: e7 | B13: Maxi | C13: -0.014 | D13: -0.02 | E13: -0.025 | F13: -0.032 | G13: -0.04 | H13: -0.05 | I13: -0.06 | J13: -0.072 | K13: -0.085 | L13: -0.1 | M13: -0.11 | N13: -0.125 | O13: -0.135
B14: Mini | C14: -0.024 | D14: -0.032 | E14: -0.04 | F14: -0.05 | G14: -0.061 | H14: -0.075 | I14: -0.09 | J14: -0.107 | K14: -0.125 | L14: -0.146 | M14: -0.162 | N14: -0.182 | O14: -0.198
A15: e8 | B15: Maxi | C15: -0.14 | D15: -0.02 | E15: -0.025 | F15: -0.032 | G15: -0.04 | H15: -0.05 | I15: -0.06 | J15: -0.072 | K15: -0.085 | L15: -0.1 | M15: -0.11 | N15: -0.125 | O15: -0.135
B16: Mini | C16: -0.028 | D16: -0.038 | E16: -0.047 | F16: -0.059 | G16: -0.073 | H16: -0.089 | I16: -0.106 | J16: -0.126 | K16: -0.148 | L16: -0.172 | M16: -0.191 | N16: -0.214 | O16: -0.232
A17: e9 | B17: Maxi | C17: -0.014 | D17: -0.02 | E17: -0.025 | F17: -0.032 | G17: -0.04 | H17: -0.05 | I17: -0.06 | J17: -0.072 | K17: -0.085 | L17: -0.1 | M17: -0.11 | N17: -0.125 | O17: -0.135
B18: Mini | C18: -0.039 | D18: -0.05 | E18: -0.061 | F18: -0.075 | G18: -0.092 | H18: -0.112 | I18: -0.134 | J18: -0.159 | K18: -0.185 | L18: -0.215 | M18: -0.24 | N18: -0.265 | O18: -0.29
A19: f6 | B19: Maxi | C19: -0.006 | D19: -0.01 | E19: -0.013 | F19: -0.016 | G19: -0.02 | H19: -0.025 | I19: -0.03 | J19: -0.036 | K19: -0.043 | L19: -0.05 | M19: -0.056 | N19: -0.062 | O19: -0.068
B20: Mini | C20: -0.012 | D20: -0.018 | E20: -0.022 | F20: -0.027 | G20: -0.033 | H20: -0.041 | I20: -0.049 | J20: -0.058 | K20: -0.068 | L20: -0.079 | M20: -0.088 | N20: -0.098 | O20: -0.108
A21: f7 | B21: Maxi | C21: -0.006 | D21: -0.01 | E21: -0.013 | F21: -0.016 | G21: -0.02 | H21: -0.025 | I21: -0.03 | J21: -0.036 | K21: -0.043 | L21: -0.05 | M21: -0.056 | N21: -0.062 | O21: -0.068
B22: Mini | C22: -0.016 | D22: -0.022 | E22: -0.028 | F22: -0.034 | G22: -0.041 | H22: -0.05 | I22: -0.06 | J22: -0.071 | K22: -0.083 | L22: -0.096 | M22: -0.106 | N22: -0.119 | O22: -0.131
A23: g5 | B23: Maxi | C23: -0.002 | D23: 0.004 | E23: -0.005 | F23: -0.006 | G23: -0.007 | H23: -0.009 | I23: -0.01 | J23: -0.012 | K23: -0.014 | L23: -0.015 | M23: -0.014 | N23: -0.018 | O23: -0.02
B24: Mini | C24: -0.006 | D24: -0.009 | E24: -0.011 | F24: -0.014 | G24: -0.016 | H24: -0.02 | I24: -0.023 | J24: -0.027 | K24: -0.032 | L24: -0.035 | M24: -0.04 | N24: -0.043 | O24: =-M24 -> 0.04
A25: g6 | B25: Maxi | C25: -0.002 | D25: 0.004 | E25: -0.005 | F25: -0.006 | G25: -0.007 | H25: -0.009 | I25: -0.01 | J25: -0.012 | K25: -0.014 | L25: -0.015 | M25: -0.014 | N25: -0.018 | O25: -0.02
B26: Mini | C26: -0.008 | D26: -0.012 | E26: -0.014 | F26: -0.017 | G26: -0.02 | H26: -0.025 | I26: -0.029 | J26: -0.034 | K26: -0.039 | L26: -0.044 | M26: -0.049 | N26: -0.054 | O26: =-0.06 -> -0.06
A27: h5 | B27: Maxi | C27: 0 | D27: 0 | E27: 0 | F27: 0 | G27: 0 | H27: 0 | I27: 0 | J27: 0 | K27: 0 | L27: 0 | M27: 0 | N27: 0 | O27: 0
B28: Mini | C28: -0.004 | D28: -0.005 | E28: -0.006 | F28: -0.008 | G28: -0.009 | H28: -0.011 | I28: -0.013 | J28: -0.015 | K28: -0.018 | L28: -0.02 | M28: -0.023 | N28: -0.025 | O28: -0.027
A29: h6 | B29: Maxi | C29: 0 | D29: 0 | E29: 0 | F29: 0 | G29: 0 | H29: 0 | I29: 0 | J29: 0 | K29: 0 | L29: 0 | M29: 0 | N29: 0 | O29: 0
B30: Mini | C30: -0.006 | D30: -0.008 | E30: -0.009 | F30: -0.011 | G30: -0.013 | H30: -0.016 | I30: -0.019 | J30: -0.022 | K30: -0.025 | L30: -0.029 | M30: -0.032 | N30: -0.036 | O30: -0.04
A31: h7 | B31: Maxi | C31: 0 | D31: 0 | E31: 0 | F31: 0 | G31: 0 | H31: 0 | I31: 0 | J31: 0 | K31: 0 | L31: 0 | M31: 0 | N31: 0 | O31: 0
B32: Mini | C32: -0.006 | D32: -0.012 | E32: -0.015 | F32: -0.018 | G32: -0.021 | H32: -0.025 | I32: -0.03 | J32: -0.035 | K32: -0.04 | L32: -0.046 | M32: -0.052 | N32: -0.057 | O32: -0.063
A33: h8 | B33: Maxi | C33: 0 | D33: 0 | E33: 0 | F33: 0 | G33: 0 | H33: 0 | I33: 0 | J33: 0 | K33: 0 | L33: 0 | M33: 0 | N33: 0 | O33: 0
B34: Mini | C34: -0.014 | D34: -0.018 | E34: -0.022 | F34: -0.027 | G34: -0.033 | H34: -0.039 | I34: -0.046 | J34: -0.054 | K34: -0.063 | L34: -0.072 | M34: -0.081 | N34: -0.089 | O34: -0.097
A35: h9 | B35: Maxi | C35: 0 | D35: 0 | E35: 0 | F35: 0 | G35: 0 | H35: 0 | I35: 0 | J35: 0 | K35: 0 | L35: 0 | M35: 0 | N35: 0 | O35: 0
B36: Mini | C36: -0.025 | D36: -0.03 | E36: -0.036 | F36: -0.043 | G36: -0.052 | H36: -0.062 | I36: -0.074 | J36: -0.087 | K36: -0.1 | L36: -0.115 | M36: -0.13 | N36: -0.14 | O36: -0.155
A37: h10 | B37: Maxi | C37: 0 | D37: 0 | E37: 0 | F37: 0 | G37: 0 | H37: 0 | I37: 0 | J37: 0 | K37: 0 | L37: 0 | M37: 0 | N37: 0 | O37: 0
B38: Mini | C38: -0.04 | D38: -0.048 | E38: -0.058 | F38: -0.07 | G38: -0.084 | H38: -0.1 | I38: -0.12 | J38: -0.14 | K38: -0.16 | L38: -0.185 | M38: -0.21 | N38: -0.23 | O38: -0.25
A39: h11 | B39: Maxi | C39: 0 | D39: 0 | E39: 0 | F39: 0 | G39: 0 | H39: 0 | I39: 0 | J39: 0 | K39: 0 | L39: 0 | M39: 0 | N39: 0 | O39: 0
B40: Mini | C40: -0.06 | D40: -0.075 | E40: -0.09 | F40: -0.11 | G40: -0.13 | H40: -0.16 | I40: -0.19 | J40: -0.22 | K40: -0.25 | L40: -0.29 | M40: -0.32 | N40: -0.36 | O40: -0.4
A41: h13 | B41: Maxi | C41: 0 | D41: 0 | E41: 0 | F41: 0 | G41: 0 | H41: 0 | I41: 0 | J41: 0 | K41: 0 | L41: 0 | M41: 0 | N41: 0 | O41: 0
B42: Mini | C42: -0.14 | D42: -0.18 | E42: -0.22 | F42: -0.27 | G42: -0.33 | H42: -0.39 | I42: -0.46 | J42: -0.54 | K42: -0.63 | L42: -0.72 | M42: -0.81 | N42: -0.89 | O42: -0.97
A43: j6 | B43: Maxi | C43: 0.004 | D43: 0.006 | E43: 0.007 | F43: 0.008 | G43: 0.009 | H43: 0.011 | I43: 0.012 | J43: 0.013 | K43: 0.014 | L43: 0.016 | M43: 0.016 | N43: 0.018 | O43: 0.02
B44: Mini | C44: -0.002 | D44: -0.002 | E44: -0.002 | F44: -0.003 | G44: -0.004 | H44: -0.005 | I44: -0.007 | J44: -0.009 | K44: -0.011 | L44: -0.013 | M44: -0.016 | N44: -0.018 | O44: -0.02
A45: js5 | B45: Maxi | C45: 0.002 | D45: 0.025 | E45: 0.003 | F45: 0.004 | G45: 0.0045 | H45: 0.0055 | I45: 0.0065 | J45: 0.0075 | K45: 0.009 | L45: 0.01 | M45: 0.0115 | N45: 0.0125 | O45: 0.0135
B46: Mini | C46: -0.002 | D46: -0.025 | E46: -0.003 | F46: -0.004 | G46: -0.0045 | H46: -0.0055 | I46: -0.0065 | J46: -0.0075 | K46: -0.009 | L46: -0.01 | M46: -0.0115 | N46: -0.0125 | O46: -0.0135
A47: js6 | B47: Maxi | C47: 0.003 | D47: 0.004 | E47: 0.0045 | F47: 0.0055 | G47: 0.0065 | H47: 0.008 | I47: 0.0095 | J47: 0.011 | K47: 0.0125 | L47: 0.0145 | M47: 0.016 | N47: 0.018 | O47: 0.02
B48: Mini | C48: -0.003 | D48: -0.004 | E48: -0.0045 | F48: -0.0055 | G48: -0.0065 | H48: -0.008 | I48: -0.0095 | J48: -0.011 | K48: -0.0125 | L48: -0.0145 | M48: -0.016 | N48: -0.018 | O48: -0.02
A49: k5 | B49: Maxi | C49: 0.004 | D49: 0.006 | E49: 0.007 | F49: 0.009 | G49: 0.011 | H49: 0.013 | I49: 0.015 | J49: 0.018 | K49: 0.021 | L49: 0.024 | M49: 0.027 | N49: 0.029 | O49: 0.032
B50: Mini | C50: 0 | D50: 0.001 | E50: 0.001 | F50: 0.001 | G50: 0.002 | H50: 0.002 | I50: 0.002 | J50: 0.003 | K50: 0.003 | L50: 0.004 | M50: 0.004 | N50: 0.004 | O50: 0.005
A51: k6 | B51: Maxi | C51: 0.006 | D51: 0.009 | E51: 0.01 | F51: 0.012 | G51: 0.015 | H51: 0.018 | I51: 0.021 | J51: 0.025 | K51: 0.028 | L51: 0.033 | M51: 0.036 | N51: 0.04 | O51: 0.045
B52: Mini | C52: 0 | D52: 0.001 | E52: 0.001 | F52: 0.001 | G52: 0.002 | H52: 0.002 | I52: 0.002 | J52: 0.003 | K52: 0.003 | L52: 0.004 | M52: 0.004 | N52: 0.004 | O52: 0.005
A53: m5 | B53: Maxi | C53: 0.006 | D53: 0.009 | E53: 0.012 | F53: 0.015 | G53: 0.017 | H53: 0.02 | I53: 0.024 | J53: 0.028 | K53: 0.033 | L53: 0.037 | M53: 0.043 | N53: 0.046 | O53: 0.05
B54: Mini | C54: 0.002 | D54: 0.004 | E54: 0.006 | F54: 0.007 | G54: 0.008 | H54: 0.009 | I54: 0.011 | J54: 0.013 | K54: 0.015 | L54: 0.017 | M54: 0.02 | N54: 0.021 | O54: 0.023
A55: m6 | B55: Maxi | C55: 0.008 | D55: 0.012 | E55: 0.015 | F55: 0.018 | G55: 0.021 | H55: 0.025 | I55: 0.03 | J55: 0.035 | K55: 0.04 | L55: 0.046 | M55: 0.052 | N55: 0.057 | O55: 0.063
B56: Mini | C56: 0.002 | D56: 0.004 | E56: 0.006 | F56: 0.007 | G56: 0.008 | H56: 0.009 | I56: 0.011 | J56: 0.013 | K56: 0.015 | L56: 0.017 | M56: 0.02 | N56: 0.021 | O56: 0.023
A57: n6 | B57: Maxi | C57: 0.01 | D57: 0.016 | E57: 0.019 | F57: 0.023 | G57: 0.028 | H57: 0.033 | I57: 0.039 | J57: 0.045 | K57: 0.052 | L57: 0.06 | M57: 0.066 | N57: 0.073 | O57: 0.08
B58: Mini | C58: 0.004 | D58: 0.008 | E58: 0.01 | F58: 0.012 | G58: 0.015 | H58: 0.017 | I58: 0.02 | J58: 0.023 | K58: 0.027 | L58: 0.031 | M58: 0.034 | N58: 0.037 | O58: 0.04
A59: p6 | B59: Maxi | C59: 0.012 | D59: 0.02 | E59: 0.024 | F59: 0.029 | G59: 0.035 | H59: 0.042 | I59: 0.051 | J59: 0.059 | K59: 0.068 | L59: 0.079 | M59: 0.088 | N59: 0.098 | O59: 0.108
B60: Mini | C60: 0.006 | D60: 0.012 | E60: 0.015 | F60: 0.018 | G60: 0.022 | H60: 0.026 | I60: 0.032 | J60: 0.037 | K60: 0.043 | L60: 0.05 | M60: 3.15 | N60: 0.062 | O60: 0.068
B61: Maxi
B62: Mini
B63: Maxi
B64: Mini
B65: Maxi
B66: Mini
B67: Maxi
B68: Mini
B69: Maxi
B70: Mini
B71: Maxi
B72: Mini
B73: Maxi
B74: Mini
B75: Maxi
B76: Mini
B77: Maxi
B78: Mini
B79: Maxi
B80: Mini

Sheet Calcul ajustement
A1: Cote nominale | C1: 15
A2: Ajustement | C2: H11e8
A3: ALESAGE | B3: Tolérance alésage | C3: H11
C4: H
C5: 11
C6: 11
C7: H11
B8: N° ligne écart sup | C8: 19
B9: N° colonne écart sup | C9: 6
B10: Valeur écart sup | C10: 0.11
B11: Valeur écart inf | C11: 0
B12: Cote maxi | C12: 15.11
B13: Cote mini | C13: 15
A14: Arbre | B14: Tolérance arbre | C14: 100000000
C15: 1
C16: e8
B17: N° ligne écart sup | C17: 15
B18: N° colonne écart sup | C18: 6
B19: Valeur écart sup | C19: -0.032
B20: Valeur écart inf | C20: -0.059
B21: Cote maxi | C21: 14.968
B22: Cote mini | C22: 14.941
A23: Jeu maxi | C23: 0.169
A24: Jeu mini | C24: 0.032

Sheet Calcul courbes
C1: Jmaxi | D1: Jmini
A2: Paramètres de courbe | B2: b | C2: =1/(2*'Calcul ajustement'!$C$1+'Calcul ajustement'!$C$23) -> 0.03314660744
B3: c | C3: ='Calcul ajustement'!$C$23/(2*'Calcul ajustement'!$C$1+'Calcul ajustement'!$C$23) -> 0.005601776658
A4: Point d'inflexion | B4: f''(xinfl) | C4: =(-1+2*C2*C5/SQRT(C2^2*C5^2+C3)-(C2^3)*(C5^3)/(C2^2*C5^2+C3)^(3/2))-(4*(C2^3)*(C5^3)/SQRT(C2^2*C5^2+C3)-4*(C2^2)*(C5^2)-2*(C2^4)*(C5^4)/(C2^2*C5^2+C3)+2*(C2^3)*(C5^3)/SQRT(C2^2*C5^2+C3)-2*(C2^2)*(C5^2)+2*C2*C5*SQRT(C2^2*C5^2+C3)/(1+(-C2*C5+SQRT(C2^2*C5^2+C3))^2)) -> -0.1148979421
B5: xinfl | C5: 1.334858778
B6: yinfl | C6: =4*ATAN(-$C$2*C5+SQRT(($C$2)^2*C5^2+$C$3)) -> 0.1706934339
A7: Pente tangente au point d'inflexion | B7: f'(xinfl) | C7: =4*(-$C$2*$C$5+($C$2^2)*($C$5^2)/SQRT($C$2^2*$C$5^2+$C$3))/(1+(-$C$2*$C$5+SQRT($C$2^2*$C$5^2+$C$3))^2) -> -0.08675962069
A8: Pente asymptote intermédiaire au point d'inflexion | B8: a | C8: =LN(10^C7) -> -0.1997714093
A9: Constante asymptote intermédiaire | B9: d | C9: =C6-C8*LOG(C5) -> 0.1957518249
A10: y première asyptote | C10: =2*ACOS('Calcul ajustement'!$C$22/'Calcul ajustement'!$C$12) -> 0.2994068499
A11: Abscisse point de rencontre 1ère et 2nde asymptotes | B11: y première asyptote=a.logx+d | C11: =10^((C10-C9)/C8) -> 0.3027832404
A12: Abscisse point de rotulage critique | B12: xCritique (mm) | C12: =10^(-C9/C8) -> 9.547267272
A13: Ordonnée point de rotulage critique (pour l'affichage) | B13: ycritique | C13: 0.01

Sheet Graphique1
E2: =VLOOKUP('Calcul courbes'!$C$11,$B$10:$C$600,1) -> 0.301995172 | F2: =VLOOKUP('Calcul courbes'!$C$12,$B$10:$C$600,1) -> 9.332543008
E3: =MATCH(E2,$B$10:$B$600,0)+8 -> 257 | F3: =MATCH(F2,$B$10:$B$600,0)+10 -> 408
E4: =ROW($B$10) -> 10 | F4: =ROW($B$10) -> 10
E5: =E3-E4 -> 247 | F5: =F3-F4 -> 398
A9: Pas | B9: L | C9: a | D9: Ordonnée asymptote intermédiaire | E9: Abscisses asymptote intermédiaire | G9: Ordonnée première asymptote | H9: Ordonnée dernière asymptote | I9: Longueur critique
A10: -3 | B10: =10^A10 -> 0.001 | C10: =4*ATAN(-'Calcul courbes'!$C$2*B10+SQRT(('Calcul courbes'!$C$2)^2*B10^2+'Calcul courbes'!$C$3)) -> 0.2986911027 | D10: =IF(ROW()>$E$3+1,('Calcul courbes'!$C$8*LOG(B10)+'Calcul courbes'!$C$9),NA()) ->  | E10: =IF(ROW()<$F$3+1,B10,NA()) -> 0.001 | F10: =IF(ROW()>$E$3+1,E10,NA()) ->  | G10: =IF(ROW()<$E$3+1,'Calcul courbes'!$C$10,NA()) -> 0.2994068499 | H10: =IF(ROW()>$F$3-1,0,NA()) ->  | I10: =IF(ROW()=$F$3-1,0,NA()) -> 
A11: -2.99 | B11: =10^A11 -> 0.001023292992 | C11: =4*ATAN(-'Calcul courbes'!$C$2*B11+SQRT(('Calcul courbes'!$C$2)^2*B11^2+'Calcul courbes'!$C$3)) -> 0.2986880329 | D11: =IF(ROW()>$E$3+1,('Calcul courbes'!$C$8*LOG(B11)+'Calcul courbes'!$C$9),NA()) ->  | E11: =IF(ROW()<$F$3+1,B11,NA()) -> 0.001023292992 | F11: =IF(ROW()>$E$3+1,E11,NA()) ->  | G11: =IF(ROW()<$E$3+1,'Calcul courbes'!$C$10,NA()) -> 0.2994068499 | H11: =IF(ROW()>$F$3-1,0,NA()) ->  | I11: =IF(ROW()=$F$3-1,0,NA()) -> 
A12: -2.98 | B12: 0.001047128548 | C12: =4*ATAN(-'Calcul courbes'!$C$2*B12+SQRT(('Calcul courbes'!$C$2)^2*B12^2+'Calcul courbes'!$C$3)) -> 0.2986848917 | D12: =IF(ROW()>$E$3+1,('Calcul courbes'!$C$8*LOG(B12)+'Calcul courbes'!$C$9),NA()) ->  | E12: 0.001047128548 | G12: =IF(ROW()<$E$3+1,'Calcul courbes'!$C$10,NA()) -> 0.2994068499
A13: -2.97 | B13: 0.001071519305 | C13: =4*ATAN(-'Calcul courbes'!$C$2*B13+SQRT(('Calcul courbes'!$C$2)^2*B13^2+'Calcul courbes'!$C$3)) -> 0.2986816773 | D13: =IF(ROW()>$E$3+1,('Calcul courbes'!$C$8*LOG(B13)+'Calcul courbes'!$C$9),NA()) ->  | E13: 0.001071519305 | G13: =IF(ROW()<$E$3+1,'Calcul courbes'!$C$10,NA()) -> 0.2994068499
A14: -2.96 | B14: 0.001096478196 | C14: =4*ATAN(-'Calcul courbes'!$C$2*B14+SQRT(('Calcul courbes'!$C$2)^2*B14^2+'Calcul courbes'!$C$3)) -> 0.2986783881 | D14: =IF(ROW()>$E$3+1,('Calcul courbes'!$C$8*LOG(B14)+'Calcul courbes'!$C$9),NA()) ->  | E14: 0.001096478196 | G14: =IF(ROW()<$E$3+1,'Calcul courbes'!$C$10,NA()) -> 0.2994068499
A15: -2.95 | B15: 0.001122018454 | C15: =4*ATAN(-'Calcul courbes'!$C$2*B15+SQRT(('Calcul courbes'!$C$2)^2*B15^2+'Calcul courbes'!$C$3)) -> 0.2986750223 | D15: =IF(ROW()>$E$3+1,('Calcul courbes'!$C$8*LOG(B15)+'Calcul courbes'!$C$9),NA()) ->  | E15: 0.001122018454 | G15: =IF(ROW()<$E$3+1,'Calcul courbes'!$C$10,NA()) -> 0.2994068499
A16: -2.94 | B16: 0.001148153621 | C16: =4*ATAN(-'Calcul courbes'!$C$2*B16+SQRT(('Calcul courbes'!$C$2)^2*B16^2+'Calcul courbes'!$C$3)) -> 0.2986715782 | D16: =IF(ROW()>$E$3+1,('Calcul courbes'!$C$8*LOG(B16)+'Calcul courbes'!$C$9),NA()) ->  | E16: 0.001148153621 | G16: =IF(ROW()<$E$3+1,'Calcul courbes'!$C$10,NA()) -> 0.2994068499
A17: -2.93 | B17: 0.001174897555 | C17: =4*ATAN(-'Calcul courbes'!$C$2*B17+SQRT(('Calcul courbes'!$C$2)^2*B17^2+'Calcul courbes'!$C$3)) -> 0.2986680538 | D17: =IF(ROW()>$E$3+1,('Calcul courbes'!$C$8*LOG(B17)+'Calcul courbes'!$C$9),NA()) ->  | E17: 0.001174897555 | G17: =IF(ROW()<$E$3+1,'Calcul courbes'!$C$10,NA()) -> 0.2994068499
A18: -2.92 | B18: 0.001202264435 | C18: =4*ATAN(-'Calcul courbes'!$C$2*B18+SQRT(('Calcul courbes'!$C$2)^2*B18^2+'Calcul courbes'!$C$3)) -> 0.2986644474 | D18: =IF(ROW()>$E$3+1,('Calcul courbes'!$C$8*LOG(B18)+'Calcul courbes'!$C$9),NA()) ->  | E18: 0.001202264435 | G18: =IF(ROW()<$E$3+1,'Calcul courbes'!$C$10,NA()) -> 0.2994068499
A19: -2.91 | B19: 0.001230268771 | C19: =4*ATAN(-'Calcul courbes'!$C$2*B19+SQRT(('Calcul courbes'!$C$2)^2*B19^2+'Calcul courbes'!$C$3)) -> 0.2986607571 | D19: =IF(ROW()>$E$3+1,('Calcul courbes'!$C$8*LOG(B19)+'Calcul courbes'!$C$9),NA()) ->  | E19: 0.001230268771 | G19: =IF(ROW()<$E$3+1,'Calcul courbes'!$C$10,NA()) -> 0.2994068499
A20: -2.9 | B20: 0.001258925412 | C20: =4*ATAN(-'Calcul courbes'!$C$2*B20+SQRT(('Calcul courbes'!$C$2)^2*B20^2+'Calcul courbes'!$C$3)) -> 0.2986569808 | D20: =IF(ROW()>$E$3+1,('Calcul courbes'!$C$8*LOG(B20)+'Calcul courbes'!$C$9),NA()) ->  | E20: 0.001258925412 | G20: =IF(ROW()<$E$3+1,'Calcul courbes'!$C$10,NA()) -> 0.2994068499
A21: -2.89 | B21: 0.001288249552 | C21: =4*ATAN(-'Calcul courbes'!$C$2*B21+SQRT(('Calcul courbes'!$C$2)^2*B21^2+'Calcul courbes'!$C$3)) -> 0.2986531167 | D21: =IF(ROW()>$E$3+1,('Calcul courbes'!$C$8*LOG(B21)+'Calcul courbes'!$C$9),NA()) ->  | E21: 0.001288249552 | G21: =IF(ROW()<$E$3+1,'Calcul courbes'!$C$10,NA()) -> 0.2994068499
A22: -2.88 | B22: 0.001318256739 | C22: =4*ATAN(-'Calcul courbes'!$C$2*B22+SQRT(('Calcul courbes'!$C$2)^2*B22^2+'Calcul courbes'!$C$3)) -> 0.2986491625 | D22: =IF(ROW()>$E$3+1,('Calcul courbes'!$C$8*LOG(B22)+'Calcul courbes'!$C$9),NA()) ->  | E22: 0.001318256739 | G22: =IF(ROW()<$E$3+1,'Calcul courbes'!$C$10,NA()) -> 0.2994068499
A23: -2.87 | B23: 0.001348962883 | C23: =4*ATAN(-'Calcul courbes'!$C$2*B23+SQRT(('Calcul courbes'!$C$2)^2*B23^2+'Calcul courbes'!$C$3)) -> 0.2986451164 | D23: =IF(ROW()>$E$3+1,('Calcul courbes'!$C$8*LOG(B23)+'Calcul courbes'!$C$9),NA()) ->  | E23: 0.001348962883 | G23: =IF(ROW()<$E$3+1,'Calcul courbes'!$C$10,NA()) -> 0.2994068499
A24: -2.86 | B24: 0.001380384265 | C24: =4*ATAN(-'Calcul courbes'!$C$2*B24+SQRT(('Calcul courbes'!$C$2)^2*B24^2+'Calcul courbes'!$C$3)) -> 0.298640976 | D24: =IF(ROW()>$E$3+1,('Calcul courbes'!$C$8*LOG(B24)+'Calcul courbes'!$C$9),NA()) ->  | E24: 0.001380384265 | G24: =IF(ROW()<$E$3+1,'Calcul courbes'!$C$10,NA()) -> 0.2994068499
A25: -2.85 | B25: 0.001412537545 | C25: =4*ATAN(-'Calcul courbes'!$C$2*B25+SQRT(('Calcul courbes'!$C$2)^2*B25^2+'Calcul courbes'!$C$3)) -> 0.2986367393 | D25: =IF(ROW()>$E$3+1,('Calcul courbes'!$C$8*LOG(B25)+'Calcul courbes'!$C$9),NA()) ->  | E25: 0.001412537545 | G25: =IF(ROW()<$E$3+1,'Calcul courbes'!$C$10,NA()) -> 0.2994068499
A26: -2.84 | B26: 0.001445439771 | C26: =4*ATAN(-'Calcul courbes'!$C$2*B26+SQRT(('Calcul courbes'!$C$2)^2*B26^2+'Calcul courbes'!$C$3)) -> 0.2986324039 | D26: =IF(ROW()>$E$3+1,('Calcul courbes'!$C$8*LOG(B26)+'Calcul courbes'!$C$9),NA()) ->  | E26: 0.001445439771 | G26: =IF(ROW()<$E$3+1,'Calcul courbes'!$C$10,NA()) -> 0.2994068499
A27: -2.83 | B27: 0.001479108388 | C27: =4*ATAN(-'Calcul courbes'!$C$2*B27+SQRT(('Calcul courbes'!$C$2)^2*B27^2+'Calcul courbes'!$C$3)) -> 0.2986279676 | D27: =IF(ROW()>$E$3+1,('Calcul courbes'!$C$8*LOG(B27)+'Calcul courbes'!$C$9),NA()) ->  | E27: 0.001479108388 | G27: =IF(ROW()<$E$3+1,'Calcul courbes'!$C$10,NA()) -> 0.2994068499
A28: -2.82 | B28: 0.001513561248 | C28: =4*ATAN(-'Calcul courbes'!$C$2*B28+SQRT(('Calcul courbes'!$C$2)^2*B28^2+'Calcul courbes'!$C$3)) -> 0.298623428 | D28: =IF(ROW()>$E$3+1,('Calcul courbes'!$C$8*LOG(B28)+'Calcul courbes'!$C$9),NA()) ->  | E28: 0.001513561248 | G28: =IF(ROW()<$E$3+1,'Calcul courbes'!$C$10,NA()) -> 0.2994068499
A29: -2.81 | B29: 0.001548816619 | C29: =4*ATAN(-'Calcul courbes'!$C$2*B29+SQRT(('Calcul courbes'!$C$2)^2*B29^2+'Calcul courbes'!$C$3)) -> 0.2986187828 | D29: =IF(ROW()>$E$3+1,('Calcul courbes'!$C$8*LOG(B29)+'Calcul courbes'!$C$9),NA()) ->  | E29: 0.001548816619 | G29: =IF(ROW()<$E$3+1,'Calcul courbes'!$C$10,NA()) -> 0.2994068499
A30: -2.8 | B30: 0.001584893192 | C30: =4*ATAN(-'Calcul courbes'!$C$2*B30+SQRT(('Calcul courbes'!$C$2)^2*B30^2+'Calcul courbes'!$C$3)) -> 0.2986140294 | D30: =IF(ROW()>$E$3+1,('Calcul courbes'!$C$8*LOG(B30)+'Calcul courbes'!$C$9),NA()) ->  | E30: 0.001584893192 | G30: =IF(ROW()<$E$3+1,'Calcul courbes'!$C$10,NA()) -> 0.2994068499
A31: -2.79 | B31: 0.001621810097 | C31: =4*ATAN(-'Calcul courbes'!$C$2*B31+SQRT(('Calcul courbes'!$C$2)^2*B31^2+'Calcul courbes'!$C$3)) -> 0.2986091655 | D31: =IF(ROW()>$E$3+1,('Calcul courbes'!$C$8*LOG(B31)+'Calcul courbes'!$C$9),NA()) ->  | E31: 0.001621810097 | G31: =IF(ROW()<$E$3+1,'Calcul courbes'!$C$10,NA()) -> 0.2994068499
A32: -2.78 | B32: 0.001659586907 | C32: =4*ATAN(-'Calcul courbes'!$C$2*B32+SQRT(('Calcul courbes'!$C$2)^2*B32^2+'Calcul courbes'!$C$3)) -> 0.2986041882 | D32: =IF(ROW()>$E$3+1,('Calcul courbes'!$C$8*LOG(B32)+'Calcul courbes'!$C$9),NA()) ->  | E32: 0.001659586907 | G32: =IF(ROW()<$E$3+1,'Calcul courbes'!$C$10,NA()) -> 0.2994068499
A33: -2.77 | B33: 0.001698243652 | C33: =4*ATAN(-'Calcul courbes'!$C$2*B33+SQRT(('Calcul courbes'!$C$2)^2*B33^2+'Calcul courbes'!$C$3)) -> 0.2985990952 | D33: =IF(ROW()>$E$3+1,('Calcul courbes'!$C$8*LOG(B33)+'Calcul courbes'!$C$9),NA()) ->  | E33: 0.001698243652 | G33: =IF(ROW()<$E$3+1,'Calcul courbes'!$C$10,NA()) -> 0.2994068499
A34: -2.76 | B34: 0.001737800829 | C34: =4*ATAN(-'Calcul courbes'!$C$2*B34+SQRT(('Calcul courbes'!$C$2)^2*B34^2+'Calcul courbes'!$C$3)) -> 0.2985938836 | D34: =IF(ROW()>$E$3+1,('Calcul courbes'!$C$8*LOG(B34)+'Calcul courbes'!$C$9),NA()) ->  | E34: 0.001737800829 | G34: =IF(ROW()<$E$3+1,'Calcul courbes'!$C$10,NA()) -> 0.2994068499
A35: -2.75 | B35: 0.00177827941 | C35: =4*ATAN(-'Calcul courbes'!$C$2*B35+SQRT(('Calcul courbes'!$C$2)^2*B35^2+'Calcul courbes'!$C$3)) -> 0.2985885507 | D35: =IF(ROW()>$E$3+1,('Calcul courbes'!$C$8*LOG(B35)+'Calcul courbes'!$C$9),NA()) ->  | E35: 0.00177827941 | G35: =IF(ROW()<$E$3+1,'Calcul courbes'!$C$10,NA()) -> 0.2994068499
A36: -2.74 | B36: 0.001819700859 | C36: =4*ATAN(-'Calcul courbes'!$C$2*B36+SQRT(('Calcul courbes'!$C$2)^2*B36^2+'Calcul courbes'!$C$3)) -> 0.2985830936 | D36: =IF(ROW()>$E$3+1,('Calcul courbes'!$C$8*LOG(B36)+'Calcul courbes'!$C$9),NA()) ->  | E36: 0.001819700859 | G36: =IF(ROW()<$E$3+1,'Calcul courbes'!$C$10,NA()) -> 0.2994068499
A37: -2.73 | B37: 0.001862087137 | C37: =4*ATAN(-'Calcul courbes'!$C$2*B37+SQRT(('Calcul courbes'!$C$2)^2*B37^2+'Calcul courbes'!$C$3)) -> 0.2985775096 | D37: =IF(ROW()>$E$3+1,('Calcul courbes'!$C$8*LOG(B37)+'Calcul courbes'!$C$9),NA()) ->  | E37: 0.001862087137 | G37: =IF(ROW()<$E$3+1,'Calcul courbes'!$C$10,NA()) -> 0.2994068499
A38: -2.72 | B38: 0.001905460718 | C38: =4*ATAN(-'Calcul courbes'!$C$2*B38+SQRT(('Calcul courbes'!$C$2)^2*B38^2+'Calcul courbes'!$C$3)) -> 0.2985717956 | D38: =IF(ROW()>$E$3+1,('Calcul courbes'!$C$8*LOG(B38)+'Calcul courbes'!$C$9),NA()) ->  | E38: 0.001905460718 | G38: =IF(ROW()<$E$3+1,'Calcul courbes'!$C$10,NA()) -> 0.2994068499
A39: -2.71 | B39: 0.0019498446 | C39: =4*ATAN(-'Calcul courbes'!$C$2*B39+SQRT(('Calcul courbes'!$C$2)^2*B39^2+'Calcul courbes'!$C$3)) -> 0.2985659486 | D39: =IF(ROW()>$E$3+1,('Calcul courbes'!$C$8*LOG(B39)+'Calcul courbes'!$C$9),NA()) ->  | E39: 0.0019498446 | G39: =IF(ROW()<$E$3+1,'Calcul courbes'!$C$10,NA()) -> 0.2994068499
A40: -2.7 | B40: 0.001995262315 | C40: =4*ATAN(-'Calcul courbes'!$C$2*B40+SQRT(('Calcul courbes'!$C$2)^2*B40^2+'Calcul courbes'!$C$3)) -> 0.2985599656 | D40: =IF(ROW()>$E$3+1,('Calcul courbes'!$C$8*LOG(B40)+'Calcul courbes'!$C$9),NA()) ->  | E40: 0.001995262315 | G40: =IF(ROW()<$E$3+1,'Calcul courbes'!$C$10,NA()) -> 0.2994068499
A41: -2.69 | B41: 0.002041737945 | C41: =4*ATAN(-'Calcul courbes'!$C$2*B41+SQRT(('Calcul courbes'!$C$2)^2*B41^2+'Calcul courbes'!$C$3)) -> 0.2985538433 | D41: =IF(ROW()>$E$3+1,('Calcul courbes'!$C$8*LOG(B41)+'Calcul courbes'!$C$9),NA()) ->  | E41: 0.002041737945 | G41: =IF(ROW()<$E$3+1,'Calcul courbes'!$C$10,NA()) -> 0.2994068499
A42: -2.68 | B42: 0.002089296131 | C42: =4*ATAN(-'Calcul courbes'!$C$2*B42+SQRT(('Calcul courbes'!$C$2)^2*B42^2+'Calcul courbes'!$C$3)) -> 0.2985475785 | D42: =IF(ROW()>$E$3+1,('Calcul courbes'!$C$8*LOG(B42)+'Calcul courbes'!$C$9),NA()) ->  | E42: 0.002089296131 | G42: =IF(ROW()<$E$3+1,'Calcul courbes'!$C$10,NA()) -> 0.2994068499
A43: -2.67 | B43: 0.00213796209 | C43: =4*ATAN(-'Calcul courbes'!$C$2*B43+SQRT(('Calcul courbes'!$C$2)^2*B43^2+'Calcul courbes'!$C$3)) -> 0.2985411679 | D43: =IF(ROW()>$E$3+1,('Calcul courbes'!$C$8*LOG(B43)+'Calcul courbes'!$C$9),NA()) ->  | E43: 0.00213796209 | G43: =IF(ROW()<$E$3+1,'Calcul courbes'!$C$10,NA()) -> 0.2994068499
A44: -2.66 | B44: 0.002187761624 | C44: =4*ATAN(-'Calcul courbes'!$C$2*B44+SQRT(('Calcul courbes'!$C$2)^2*B44^2+'Calcul courbes'!$C$3)) -> 0.2985346082 | D44: =IF(ROW()>$E$3+1,('Calcul courbes'!$C$8*LOG(B44)+'Calcul courbes'!$C$9),NA()) ->  | E44: 0.002187761624 | G44: =IF(ROW()<$E$3+1,'Calcul courbes'!$C$10,NA()) -> 0.2994068499
A45: -2.65 | B45: 0.002238721139 | C45: =4*ATAN(-'Calcul courbes'!$C$2*B45+SQRT(('Calcul courbes'!$C$2)^2*B45^2+'Calcul courbes'!$C$3)) -> 0.2985278958 | D45: =IF(ROW()>$E$3+1,('Calcul courbes'!$C$8*LOG(B45)+'Calcul courbes'!$C$9),NA()) ->  | E45: 0.002238721139 | G45: =IF(ROW()<$E$3+1,'Calcul courbes'!$C$10,NA()) -> 0.2994068499
A46: -2.64 | B46: 0.002290867653 | C46: =4*ATAN(-'Calcul courbes'!$C$2*B46+SQRT(('Calcul courbes'!$C$2)^2*B46^2+'Calcul courbes'!$C$3)) -> 0.2985210272 | D46: =IF(ROW()>$E$3+1,('Calcul courbes'!$C$8*LOG(B46)+'Calcul courbes'!$C$9),NA()) ->  | E46: 0.002290867653 | G46: =IF(ROW()<$E$3+1,'Calcul courbes'!$C$10,NA()) -> 0.2994068499
A47: -2.63 | B47: 0.002344228815 | C47: =4*ATAN(-'Calcul courbes'!$C$2*B47+SQRT(('Calcul courbes'!$C$2)^2*B47^2+'Calcul courbes'!$C$3)) -> 0.2985139988 | D47: =IF(ROW()>$E$3+1,('Calcul courbes'!$C$8*LOG(B47)+'Calcul courbes'!$C$9),NA()) ->  | E47: 0.002344228815 | G47: =IF(ROW()<$E$3+1,'Calcul courbes'!$C$10,NA()) -> 0.2994068499
A48: -2.62 | B48: 0.002398832919 | C48: =4*ATAN(-'Calcul courbes'!$C$2*B48+SQRT(('Calcul courbes'!$C$2)^2*B48^2+'Calcul courbes'!$C$3)) -> 0.2985068069 | D48: =IF(ROW()>$E$3+1,('Calcul courbes'!$C$8*LOG(B48)+'Calcul courbes'!$C$9),NA()) ->  | E48: 0.002398832919 | G48: =IF(ROW()<$E$3+1,'Calcul courbes'!$C$10,NA()) -> 0.2994068499
A49: -2.61 | B49: 0.002454708916 | C49: =4*ATAN(-'Calcul courbes'!$C$2*B49+SQRT(('Calcul courbes'!$C$2)^2*B49^2+'Calcul courbes'!$C$3)) -> 0.2984994476 | D49: =IF(ROW()>$E$3+1,('Calcul courbes'!$C$8*LOG(B49)+'Calcul courbes'!$C$9),NA()) ->  | E49: 0.002454708916 | G49: =IF(ROW()<$E$3+1,'Calcul courbes'!$C$10,NA()) -> 0.2994068499
A50: -2.6 | B50: 0.002511886432 | C50: =4*ATAN(-'Calcul courbes'!$C$2*B50+SQRT(('Calcul courbes'!$C$2)^2*B50^2+'Calcul courbes'!$C$3)) -> 0.298491917 | D50: =IF(ROW()>$E$3+1,('Calcul courbes'!$C$8*LOG(B50)+'Calcul courbes'!$C$9),NA()) ->  | E50: 0.002511886432 | G50: =IF(ROW()<$E$3+1,'Calcul courbes'!$C$10,NA()) -> 0.2994068499
A51: -2.59 | B51: 0.002570395783 | C51: =4*ATAN(-'Calcul courbes'!$C$2*B51+SQRT(('Calcul courbes'!$C$2)^2*B51^2+'Calcul courbes'!$C$3)) -> 0.2984842113 | D51: =IF(ROW()>$E$3+1,('Calcul courbes'!$C$8*LOG(B51)+'Calcul courbes'!$C$9),NA()) ->  | E51: 0.002570395783 | G51: =IF(ROW()<$E$3+1,'Calcul courbes'!$C$10,NA()) -> 0.2994068499
A52: -2.58 | B52: 0.002630267992 | C52: =4*ATAN(-'Calcul courbes'!$C$2*B52+SQRT(('Calcul courbes'!$C$2)^2*B52^2+'Calcul courbes'!$C$3)) -> 0.2984763262 | D52: =IF(ROW()>$E$3+1,('Calcul courbes'!$C$8*LOG(B52)+'Calcul courbes'!$C$9),NA()) ->  | E52: 0.002630267992 | G52: =IF(ROW()<$E$3+1,'Calcul courbes'!$C$10,NA()) -> 0.2994068499
A53: -2.57 | B53: 0.002691534804 | C53: =4*ATAN(-'Calcul courbes'!$C$2*B53+SQRT(('Calcul courbes'!$C$2)^2*B53^2+'Calcul courbes'!$C$3)) -> 0.2984682578 | D53: =IF(ROW()>$E$3+1,('Calcul courbes'!$C$8*LOG(B53)+'Calcul courbes'!$C$9),NA()) ->  | E53: 0.002691534804 | G53: =IF(ROW()<$E$3+1,'Calcul courbes'!$C$10,NA()) -> 0.2994068499
A54: -2.56 | B54: 0.002754228703 | C54: =4*ATAN(-'Calcul courbes'!$C$2*B54+SQRT(('Calcul courbes'!$C$2)^2*B54^2+'Calcul courbes'!$C$3)) -> 0.2984600016 | D54: =IF(ROW()>$E$3+1,('Calcul courbes'!$C$8*LOG(B54)+'Calcul courbes'!$C$9),NA()) ->  | E54: 0.002754228703 | G54: =IF(ROW()<$E$3+1,'Calcul courbes'!$C$10,NA()) -> 0.2994068499
A55: -2.55 | B55: 0.002818382931 | C55: =4*ATAN(-'Calcul courbes'!$C$2*B55+SQRT(('Calcul courbes'!$C$2)^2*B55^2+'Calcul courbes'!$C$3)) -> 0.2984515533 | D55: =IF(ROW()>$E$3+1,('Calcul courbes'!$C$8*LOG(B55)+'Calcul courbes'!$C$9),NA()) ->  | E55: 0.002818382931 | G55: =IF(ROW()<$E$3+1,'Calcul courbes'!$C$10,NA()) -> 0.2994068499
A56: -2.54 | B56: 0.002884031503 | C56: =4*ATAN(-'Calcul courbes'!$C$2*B56+SQRT(('Calcul courbes'!$C$2)^2*B56^2+'Calcul courbes'!$C$3)) -> 0.2984429085 | D56: =IF(ROW()>$E$3+1,('Calcul courbes'!$C$8*LOG(B56)+'Calcul courbes'!$C$9),NA()) ->  | E56: 0.002884031503 | G56: =IF(ROW()<$E$3+1,'Calcul courbes'!$C$10,NA()) -> 0.2994068499
A57: -2.53 | B57: 0.002951209227 | C57: =4*ATAN(-'Calcul courbes'!$C$2*B57+SQRT(('Calcul courbes'!$C$2)^2*B57^2+'Calcul courbes'!$C$3)) -> 0.2984340626 | D57: =IF(ROW()>$E$3+1,('Calcul courbes'!$C$8*LOG(B57)+'Calcul courbes'!$C$9),NA()) ->  | E57: 0.002951209227 | G57: =IF(ROW()<$E$3+1,'Calcul courbes'!$C$10,NA()) -> 0.2994068499
A58: -2.52 | B58: 0.00301995172 | C58: =4*ATAN(-'Calcul courbes'!$C$2*B58+SQRT(('Calcul courbes'!$C$2)^2*B58^2+'Calcul courbes'!$C$3)) -> 0.2984250109 | D58: =IF(ROW()>$E$3+1,('Calcul courbes'!$C$8*LOG(B58)+'Calcul courbes'!$C$9),NA()) ->  | E58: 0.00301995172 | G58: =IF(ROW()<$E$3+1,'Calcul courbes'!$C$10,NA()) -> 0.2994068499
A59: -2.51 | B59: 0.003090295433 | C59: =4*ATAN(-'Calcul courbes'!$C$2*B59+SQRT(('Calcul courbes'!$C$2)^2*B59^2+'Calcul courbes'!$C$3)) -> 0.2984157486 | D59: =IF(ROW()>$E$3+1,('Calcul courbes'!$C$8*LOG(B59)+'Calcul courbes'!$C$9),NA()) ->  | E59: 0.003090295433 | G59: =IF(ROW()<$E$3+1,'Calcul courbes'!$C$10,NA()) -> 0.2994068499
A60: -2.5 | B60: 0.00316227766 | C60: =4*ATAN(-'Calcul courbes'!$C$2*B60+SQRT(('Calcul courbes'!$C$2)^2*B60^2+'Calcul courbes'!$C$3)) -> 0.2984062709 | D60: =IF(ROW()>$E$3+1,('Calcul courbes'!$C$8*LOG(B60)+'Calcul courbes'!$C$9),NA()) ->  | E60: 0.00316227766 | G60: =IF(ROW()<$E$3+1,'Calcul courbes'!$C$10,NA()) -> 0.2994068499
A61: -2.49 | B61: 0.003235936569 | C61: =4*ATAN(-'Calcul courbes'!$C$2*B61+SQRT(('Calcul courbes'!$C$2)^2*B61^2+'Calcul courbes'!$C$3)) -> 0.2983965727 | D61: =IF(ROW()>$E$3+1,('Calcul courbes'!$C$8*LOG(B61)+'Calcul courbes'!$C$9),NA()) ->  | E61: 0.003235936569 | G61: =IF(ROW()<$E$3+1,'Calcul courbes'!$C$10,NA()) -> 0.2994068499
A62: -2.48 | B62: 0.003311311215 | C62: =4*ATAN(-'Calcul courbes'!$C$2*B62+SQRT(('Calcul courbes'!$C$2)^2*B62^2+'Calcul courbes'!$C$3)) -> 0.298386649 | D62: =IF(ROW()>$E$3+1,('Calcul courbes'!$C$8*LOG(B62)+'Calcul courbes'!$C$9),NA()) ->  | E62: 0.003311311215 | G62: =IF(ROW()<$E$3+1,'Calcul courbes'!$C$10,NA()) -> 0.2994068499
A63: -2.47 | B63: 0.003388441561 | C63: =4*ATAN(-'Calcul courbes'!$C$2*B63+SQRT(('Calcul courbes'!$C$2)^2*B63^2+'Calcul courbes'!$C$3)) -> 0.2983764944 | D63: =IF(ROW()>$E$3+1,('Calcul courbes'!$C$8*LOG(B63)+'Calcul courbes'!$C$9),NA()) ->  | E63: 0.003388441561 | G63: =IF(ROW()<$E$3+1,'Calcul courbes'!$C$10,NA()) -> 0.2994068499
A64: -2.46 | B64: 0.003467368505 | C64: =4*ATAN(-'Calcul courbes'!$C$2*B64+SQRT(('Calcul courbes'!$C$2)^2*B64^2+'Calcul courbes'!$C$3)) -> 0.2983661037 | D64: =IF(ROW()>$E$3+1,('Calcul courbes'!$C$8*LOG(B64)+'Calcul courbes'!$C$9),NA()) ->  | E64: 0.003467368505 | G64: =IF(ROW()<$E$3+1,'Calcul courbes'!$C$10,NA()) -> 0.2994068499
A65: -2.45 | B65: 0.003548133892 | C65: =4*ATAN(-'Calcul courbes'!$C$2*B65+SQRT(('Calcul courbes'!$C$2)^2*B65^2+'Calcul courbes'!$C$3)) -> 0.2983554713 | D65: =IF(ROW()>$E$3+1,('Calcul courbes'!$C$8*LOG(B65)+'Calcul courbes'!$C$9),NA()) ->  | E65: 0.003548133892 | G65: =IF(ROW()<$E$3+1,'Calcul courbes'!$C$10,NA()) -> 0.2994068499
A66: -2.44 | B66: 0.003630780548 | C66: =4*ATAN(-'Calcul courbes'!$C$2*B66+SQRT(('Calcul courbes'!$C$2)^2*B66^2+'Calcul courbes'!$C$3)) -> 0.2983445917 | D66: =IF(ROW()>$E$3+1,('Calcul courbes'!$C$8*LOG(B66)+'Calcul courbes'!$C$9),NA()) ->  | E66: 0.003630780548 | G66: =IF(ROW()<$E$3+1,'Calcul courbes'!$C$10,NA()) -> 0.2994068499
A67: -2.43 | B67: 0.003715352291 | C67: =4*ATAN(-'Calcul courbes'!$C$2*B67+SQRT(('Calcul courbes'!$C$2)^2*B67^2+'Calcul courbes'!$C$3)) -> 0.298333459 | D67: =IF(ROW()>$E$3+1,('Calcul courbes'!$C$8*LOG(B67)+'Calcul courbes'!$C$9),NA()) ->  | E67: 0.003715352291 | G67: =IF(ROW()<$E$3+1,'Calcul courbes'!$C$10,NA()) -> 0.2994068499
A68: -2.42 | B68: 0.003801893963 | C68: =4*ATAN(-'Calcul courbes'!$C$2*B68+SQRT(('Calcul courbes'!$C$2)^2*B68^2+'Calcul courbes'!$C$3)) -> 0.2983220675 | D68: =IF(ROW()>$E$3+1,('Calcul courbes'!$C$8*LOG(B68)+'Calcul courbes'!$C$9),NA()) ->  | E68: 0.003801893963 | G68: =IF(ROW()<$E$3+1,'Calcul courbes'!$C$10,NA()) -> 0.2994068499
A69: -2.41 | B69: 0.00389045145 | C69: =4*ATAN(-'Calcul courbes'!$C$2*B69+SQRT(('Calcul courbes'!$C$2)^2*B69^2+'Calcul courbes'!$C$3)) -> 0.298310411 | D69: =IF(ROW()>$E$3+1,('Calcul courbes'!$C$8*LOG(B69)+'Calcul courbes'!$C$9),NA()) ->  | E69: 0.00389045145 | G69: =IF(ROW()<$E$3+1,'Calcul courbes'!$C$10,NA()) -> 0.2994068499
A70: -2.4 | B70: 0.003981071706 | C70: =4*ATAN(-'Calcul courbes'!$C$2*B70+SQRT(('Calcul courbes'!$C$2)^2*B70^2+'Calcul courbes'!$C$3)) -> 0.2982984835 | D70: =IF(ROW()>$E$3+1,('Calcul courbes'!$C$8*LOG(B70)+'Calcul courbes'!$C$9),NA()) ->  | E70: 0.003981071706 | G70: =IF(ROW()<$E$3+1,'Calcul courbes'!$C$10,NA()) -> 0.2994068499
A71: -2.39 | B71: 0.004073802778 | C71: =4*ATAN(-'Calcul courbes'!$C$2*B71+SQRT(('Calcul courbes'!$C$2)^2*B71^2+'Calcul courbes'!$C$3)) -> 0.2982862787 | D71: =IF(ROW()>$E$3+1,('Calcul courbes'!$C$8*LOG(B71)+'Calcul courbes'!$C$9),NA()) ->  | E71: 0.004073802778 | G71: =IF(ROW()<$E$3+1,'Calcul courbes'!$C$10,NA()) -> 0.2994068499
A72: -2.38 | B72: 0.004168693835 | C72: =4*ATAN(-'Calcul courbes'!$C$2*B72+SQRT(('Calcul courbes'!$C$2)^2*B72^2+'Calcul courbes'!$C$3)) -> 0.2982737901 | D72: =IF(ROW()>$E$3+1,('Calcul courbes'!$C$8*LOG(B72)+'Calcul courbes'!$C$9),NA()) ->  | E72: 0.004168693835 | G72: =IF(ROW()<$E$3+1,'Calcul courbes'!$C$10,NA()) -> 0.2994068499
A73: -2.37 | B73: 0.004265795188 | C73: =4*ATAN(-'Calcul courbes'!$C$2*B73+SQRT(('Calcul courbes'!$C$2)^2*B73^2+'Calcul courbes'!$C$3)) -> 0.2982610111 | D73: =IF(ROW()>$E$3+1,('Calcul courbes'!$C$8*LOG(B73)+'Calcul courbes'!$C$9),NA()) ->  | E73: 0.004265795188 | G73: =IF(ROW()<$E$3+1,'Calcul courbes'!$C$10,NA()) -> 0.2994068499
A74: -2.36 | B74: 0.004365158322 | C74: =4*ATAN(-'Calcul courbes'!$C$2*B74+SQRT(('Calcul courbes'!$C$2)^2*B74^2+'Calcul courbes'!$C$3)) -> 0.2982479351 | D74: =IF(ROW()>$E$3+1,('Calcul courbes'!$C$8*LOG(B74)+'Calcul courbes'!$C$9),NA()) ->  | E74: 0.004365158322 | G74: =IF(ROW()<$E$3+1,'Calcul courbes'!$C$10,NA()) -> 0.2994068499
A75: -2.35 | B75: =10^A75 -> 0.004466835922 | C75: =4*ATAN(-'Calcul courbes'!$C$2*B75+SQRT(('Calcul courbes'!$C$2)^2*B75^2+'Calcul courbes'!$C$3)) -> 0.298234555 | D75: =IF(ROW()>$E$3+1,('Calcul courbes'!$C$8*LOG(B75)+'Calcul courbes'!$C$9),NA()) ->  | E75: =IF(ROW()<$F$3+1,B75,NA()) -> 0.004466835922 | F75: =IF(ROW()>$E$3+1,E75,NA()) ->  | G75: =IF(ROW()<$E$3+1,'Calcul courbes'!$C$10,NA()) -> 0.2994068499 | H75: =IF(ROW()>$F$3-1,0,NA()) ->  | I75: =IF(ROW()=$F$3-1,0,NA()) -> 
A76: -2.34 | B76: 0.004570881896 | C76: =4*ATAN(-'Calcul courbes'!$C$2*B76+SQRT(('Calcul courbes'!$C$2)^2*B76^2+'Calcul courbes'!$C$3)) -> 0.298220864 | D76: =IF(ROW()>$E$3+1,('Calcul courbes'!$C$8*LOG(B76)+'Calcul courbes'!$C$9),NA()) ->  | E76: 0.004570881896 | G76: =IF(ROW()<$E$3+1,'Calcul courbes'!$C$10,NA()) -> 0.2994068499
A77: -2.33 | B77: 0.004677351413 | C77: =4*ATAN(-'Calcul courbes'!$C$2*B77+SQRT(('Calcul courbes'!$C$2)^2*B77^2+'Calcul courbes'!$C$3)) -> 0.2982068546 | D77: =IF(ROW()>$E$3+1,('Calcul courbes'!$C$8*LOG(B77)+'Calcul courbes'!$C$9),NA()) ->  | E77: 0.004677351413 | G77: =IF(ROW()<$E$3+1,'Calcul courbes'!$C$10,NA()) -> 0.2994068499
A78: -2.32 | B78: 0.004786300923 | C78: =4*ATAN(-'Calcul courbes'!$C$2*B78+SQRT(('Calcul courbes'!$C$2)^2*B78^2+'Calcul courbes'!$C$3)) -> 0.2981925196 | D78: =IF(ROW()>$E$3+1,('Calcul courbes'!$C$8*LOG(B78)+'Calcul courbes'!$C$9),NA()) ->  | E78: 0.004786300923 | G78: =IF(ROW()<$E$3+1,'Calcul courbes'!$C$10,NA()) -> 0.2994068499
A79: -2.31 | B79: 0.004897788194 | C79: =4*ATAN(-'Calcul courbes'!$C$2*B79+SQRT(('Calcul courbes'!$C$2)^2*B79^2+'Calcul courbes'!$C$3)) -> 0.2981778514 | D79: =IF(ROW()>$E$3+1,('Calcul courbes'!$C$8*LOG(B79)+'Calcul courbes'!$C$9),NA()) ->  | E79: 0.004897788194 | G79: =IF(ROW()<$E$3+1,'Calcul courbes'!$C$10,NA()) -> 0.2994068499
A80: -2.3 | B80: 0.005011872336 | C80: =4*ATAN(-'Calcul courbes'!$C$2*B80+SQRT(('Calcul courbes'!$C$2)^2*B80^2+'Calcul courbes'!$C$3)) -> 0.2981628423 | D80: =IF(ROW()>$E$3+1,('Calcul courbes'!$C$8*LOG(B80)+'Calcul courbes'!$C$9),NA()) ->  | E80: 0.005011872336 | G80: =IF(ROW()<$E$3+1,'Calcul courbes'!$C$10,NA()) -> 0.2994068499
A81: -2.29 | B81: 0.00512861384 | C81: =4*ATAN(-'Calcul courbes'!$C$2*B81+SQRT(('Calcul courbes'!$C$2)^2*B81^2+'Calcul courbes'!$C$3)) -> 0.2981474844 | D81: =IF(ROW()>$E$3+1,('Calcul courbes'!$C$8*LOG(B81)+'Calcul courbes'!$C$9),NA()) ->  | E81: 0.00512861384 | G81: =IF(ROW()<$E$3+1,'Calcul courbes'!$C$10,NA()) -> 0.2994068499
A82: -2.28 | B82: 0.005248074602 | C82: =4*ATAN(-'Calcul courbes'!$C$2*B82+SQRT(('Calcul courbes'!$C$2)^2*B82^2+'Calcul courbes'!$C$3)) -> 0.2981317695 | D82: =IF(ROW()>$E$3+1,('Calcul courbes'!$C$8*LOG(B82)+'Calcul courbes'!$C$9),NA()) ->  | E82: 0.005248074602 | G82: =IF(ROW()<$E$3+1,'Calcul courbes'!$C$10,NA()) -> 0.2994068499
A83: -2.27 | B83: 0.005370317964 | C83: =4*ATAN(-'Calcul courbes'!$C$2*B83+SQRT(('Calcul courbes'!$C$2)^2*B83^2+'Calcul courbes'!$C$3)) -> 0.2981156895 | D83: =IF(ROW()>$E$3+1,('Calcul courbes'!$C$8*LOG(B83)+'Calcul courbes'!$C$9),NA()) ->  | E83: 0.005370317964 | G83: =IF(ROW()<$E$3+1,'Calcul courbes'!$C$10,NA()) -> 0.2994068499
A84: -2.26 | B84: 0.005495408739 | C84: =4*ATAN(-'Calcul courbes'!$C$2*B84+SQRT(('Calcul courbes'!$C$2)^2*B84^2+'Calcul courbes'!$C$3)) -> 0.2980992358 | D84: =IF(ROW()>$E$3+1,('Calcul courbes'!$C$8*LOG(B84)+'Calcul courbes'!$C$9),NA()) ->  | E84: 0.005495408739 | G84: =IF(ROW()<$E$3+1,'Calcul courbes'!$C$10,NA()) -> 0.2994068499
A85: -2.25 | B85: 0.005623413252 | C85: =4*ATAN(-'Calcul courbes'!$C$2*B85+SQRT(('Calcul courbes'!$C$2)^2*B85^2+'Calcul courbes'!$C$3)) -> 0.2980823997 | D85: =IF(ROW()>$E$3+1,('Calcul courbes'!$C$8*LOG(B85)+'Calcul courbes'!$C$9),NA()) ->  | E85: 0.005623413252 | G85: =IF(ROW()<$E$3+1,'Calcul courbes'!$C$10,NA()) -> 0.2994068499
A86: -2.24 | B86: 0.005754399373 | C86: =4*ATAN(-'Calcul courbes'!$C$2*B86+SQRT(('Calcul courbes'!$C$2)^2*B86^2+'Calcul courbes'!$C$3)) -> 0.2980651725 | D86: =IF(ROW()>$E$3+1,('Calcul courbes'!$C$8*LOG(B86)+'Calcul courbes'!$C$9),NA()) ->  | E86: 0.005754399373 | G86: =IF(ROW()<$E$3+1,'Calcul courbes'!$C$10,NA()) -> 0.2994068499
A87: -2.23 | B87: 0.005888436554 | C87: =4*ATAN(-'Calcul courbes'!$C$2*B87+SQRT(('Calcul courbes'!$C$2)^2*B87^2+'Calcul courbes'!$C$3)) -> 0.2980475451 | D87: =IF(ROW()>$E$3+1,('Calcul courbes'!$C$8*LOG(B87)+'Calcul courbes'!$C$9),NA()) ->  | E87: 0.005888436554 | G87: =IF(ROW()<$E$3+1,'Calcul courbes'!$C$10,NA()) -> 0.2994068499
A88: -2.22 | B88: 0.006025595861 | C88: =4*ATAN(-'Calcul courbes'!$C$2*B88+SQRT(('Calcul courbes'!$C$2)^2*B88^2+'Calcul courbes'!$C$3)) -> 0.2980295081 | D88: =IF(ROW()>$E$3+1,('Calcul courbes'!$C$8*LOG(B88)+'Calcul courbes'!$C$9),NA()) ->  | E88: 0.006025595861 | G88: =IF(ROW()<$E$3+1,'Calcul courbes'!$C$10,NA()) -> 0.2994068499
A89: -2.21 | B89: 0.006165950019 | C89: =4*ATAN(-'Calcul courbes'!$C$2*B89+SQRT(('Calcul courbes'!$C$2)^2*B89^2+'Calcul courbes'!$C$3)) -> 0.2980110521 | D89: =IF(ROW()>$E$3+1,('Calcul courbes'!$C$8*LOG(B89)+'Calcul courbes'!$C$9),NA()) ->  | E89: 0.006165950019 | G89: =IF(ROW()<$E$3+1,'Calcul courbes'!$C$10,NA()) -> 0.2994068499
A90: -2.2 | B90: 0.006309573445 | C90: =4*ATAN(-'Calcul courbes'!$C$2*B90+SQRT(('Calcul courbes'!$C$2)^2*B90^2+'Calcul courbes'!$C$3)) -> 0.2979921674 | D90: =IF(ROW()>$E$3+1,('Calcul courbes'!$C$8*LOG(B90)+'Calcul courbes'!$C$9),NA()) ->  | E90: 0.006309573445 | G90: =IF(ROW()<$E$3+1,'Calcul courbes'!$C$10,NA()) -> 0.2994068499
A91: -2.19 | B91: 0.00645654229 | C91: =4*ATAN(-'Calcul courbes'!$C$2*B91+SQRT(('Calcul courbes'!$C$2)^2*B91^2+'Calcul courbes'!$C$3)) -> 0.2979728441 | D91: =IF(ROW()>$E$3+1,('Calcul courbes'!$C$8*LOG(B91)+'Calcul courbes'!$C$9),NA()) ->  | E91: 0.00645654229 | G91: =IF(ROW()<$E$3+1,'Calcul courbes'!$C$10,NA()) -> 0.2994068499
A92: -2.18 | B92: 0.00660693448 | C92: =4*ATAN(-'Calcul courbes'!$C$2*B92+SQRT(('Calcul courbes'!$C$2)^2*B92^2+'Calcul courbes'!$C$3)) -> 0.2979530719 | D92: =IF(ROW()>$E$3+1,('Calcul courbes'!$C$8*LOG(B92)+'Calcul courbes'!$C$9),NA()) ->  | E92: 0.00660693448 | G92: =IF(ROW()<$E$3+1,'Calcul courbes'!$C$10,NA()) -> 0.2994068499
A93: -2.17 | B93: 0.006760829754 | C93: =4*ATAN(-'Calcul courbes'!$C$2*B93+SQRT(('Calcul courbes'!$C$2)^2*B93^2+'Calcul courbes'!$C$3)) -> 0.2979328405 | D93: =IF(ROW()>$E$3+1,('Calcul courbes'!$C$8*LOG(B93)+'Calcul courbes'!$C$9),NA()) ->  | E93: 0.006760829754 | G93: =IF(ROW()<$E$3+1,'Calcul courbes'!$C$10,NA()) -> 0.2994068499
A94: -2.16 | B94: 0.006918309709 | C94: =4*ATAN(-'Calcul courbes'!$C$2*B94+SQRT(('Calcul courbes'!$C$2)^2*B94^2+'Calcul courbes'!$C$3)) -> 0.2979121393 | D94: =IF(ROW()>$E$3+1,('Calcul courbes'!$C$8*LOG(B94)+'Calcul courbes'!$C$9),NA()) ->  | E94: 0.006918309709 | G94: =IF(ROW()<$E$3+1,'Calcul courbes'!$C$10,NA()) -> 0.2994068499
A95: -2.15 | B95: 0.007079457844 | C95: =4*ATAN(-'Calcul courbes'!$C$2*B95+SQRT(('Calcul courbes'!$C$2)^2*B95^2+'Calcul courbes'!$C$3)) -> 0.2978909574 | D95: =IF(ROW()>$E$3+1,('Calcul courbes'!$C$8*LOG(B95)+'Calcul courbes'!$C$9),NA()) ->  | E95: 0.007079457844 | G95: =IF(ROW()<$E$3+1,'Calcul courbes'!$C$10,NA()) -> 0.2994068499
A96: -2.14 | B96: 0.007244359601 | C96: =4*ATAN(-'Calcul courbes'!$C$2*B96+SQRT(('Calcul courbes'!$C$2)^2*B96^2+'Calcul courbes'!$C$3)) -> 0.2978692837 | D96: =IF(ROW()>$E$3+1,('Calcul courbes'!$C$8*LOG(B96)+'Calcul courbes'!$C$9),NA()) ->  | E96: 0.007244359601 | G96: =IF(ROW()<$E$3+1,'Calcul courbes'!$C$10,NA()) -> 0.2994068499
A97: -2.13 | B97: 0.007413102413 | C97: =4*ATAN(-'Calcul courbes'!$C$2*B97+SQRT(('Calcul courbes'!$C$2)^2*B97^2+'Calcul courbes'!$C$3)) -> 0.2978471067 | D97: =IF(ROW()>$E$3+1,('Calcul courbes'!$C$8*LOG(B97)+'Calcul courbes'!$C$9),NA()) ->  | E97: 0.007413102413 | G97: =IF(ROW()<$E$3+1,'Calcul courbes'!$C$10,NA()) -> 0.2994068499
A98: -2.12 | B98: 0.00758577575 | C98: =4*ATAN(-'Calcul courbes'!$C$2*B98+SQRT(('Calcul courbes'!$C$2)^2*B98^2+'Calcul courbes'!$C$3)) -> 0.2978244149 | D98: =IF(ROW()>$E$3+1,('Calcul courbes'!$C$8*LOG(B98)+'Calcul courbes'!$C$9),NA()) ->  | E98: 0.00758577575 | G98: =IF(ROW()<$E$3+1,'Calcul courbes'!$C$10,NA()) -> 0.2994068499
A99: -2.11 | B99: 0.007762471166 | C99: =4*ATAN(-'Calcul courbes'!$C$2*B99+SQRT(('Calcul courbes'!$C$2)^2*B99^2+'Calcul courbes'!$C$3)) -> 0.2978011963 | D99: =IF(ROW()>$E$3+1,('Calcul courbes'!$C$8*LOG(B99)+'Calcul courbes'!$C$9),NA()) ->  | E99: 0.007762471166 | G99: =IF(ROW()<$E$3+1,'Calcul courbes'!$C$10,NA()) -> 0.2994068499
A100: -2.1 | B100: 0.007943282347 | C100: =4*ATAN(-'Calcul courbes'!$C$2*B100+SQRT(('Calcul courbes'!$C$2)^2*B100^2+'Calcul courbes'!$C$3)) -> 0.2977774387 | D100: =IF(ROW()>$E$3+1,('Calcul courbes'!$C$8*LOG(B100)+'Calcul courbes'!$C$9),NA()) ->  | E100: 0.007943282347 | G100: =IF(ROW()<$E$3+1,'Calcul courbes'!$C$10,NA()) -> 0.2994068499
A101: -2.09 | B101: 0.008128305162 | C101: =4*ATAN(-'Calcul courbes'!$C$2*B101+SQRT(('Calcul courbes'!$C$2)^2*B101^2+'Calcul courbes'!$C$3)) -> 0.2977531297 | D101: =IF(ROW()>$E$3+1,('Calcul courbes'!$C$8*LOG(B101)+'Calcul courbes'!$C$9),NA()) ->  | E101: 0.008128305162 | G101: =IF(ROW()<$E$3+1,'Calcul courbes'!$C$10,NA()) -> 0.2994068499
A102: -2.08 | B102: 0.008317637711 | C102: =4*ATAN(-'Calcul courbes'!$C$2*B102+SQRT(('Calcul courbes'!$C$2)^2*B102^2+'Calcul courbes'!$C$3)) -> 0.2977282565 | D102: =IF(ROW()>$E$3+1,('Calcul courbes'!$C$8*LOG(B102)+'Calcul courbes'!$C$9),NA()) ->  | E102: 0.008317637711 | G102: =IF(ROW()<$E$3+1,'Calcul courbes'!$C$10,NA()) -> 0.2994068499
A103: -2.07 | B103: 0.008511380382 | C103: =4*ATAN(-'Calcul courbes'!$C$2*B103+SQRT(('Calcul courbes'!$C$2)^2*B103^2+'Calcul courbes'!$C$3)) -> 0.2977028061 | D103: =IF(ROW()>$E$3+1,('Calcul courbes'!$C$8*LOG(B103)+'Calcul courbes'!$C$9),NA()) ->  | E103: 0.008511380382 | G103: =IF(ROW()<$E$3+1,'Calcul courbes'!$C$10,NA()) -> 0.2994068499
A104: -2.06 | B104: 0.0087096359 | C104: =4*ATAN(-'Calcul courbes'!$C$2*B104+SQRT(('Calcul courbes'!$C$2)^2*B104^2+'Calcul courbes'!$C$3)) -> 0.2976767651 | D104: =IF(ROW()>$E$3+1,('Calcul courbes'!$C$8*LOG(B104)+'Calcul courbes'!$C$9),NA()) ->  | E104: 0.0087096359 | G104: =IF(ROW()<$E$3+1,'Calcul courbes'!$C$10,NA()) -> 0.2994068499
A105: -2.05 | B105: 0.008912509381 | C105: =4*ATAN(-'Calcul courbes'!$C$2*B105+SQRT(('Calcul courbes'!$C$2)^2*B105^2+'Calcul courbes'!$C$3)) -> 0.2976501199 | D105: =IF(ROW()>$E$3+1,('Calcul courbes'!$C$8*LOG(B105)+'Calcul courbes'!$C$9),NA()) ->  | E105: 0.008912509381 | G105: =IF(ROW()<$E$3+1,'Calcul courbes'!$C$10,NA()) -> 0.2994068499
A106: -2.04 | B106: 0.009120108394 | C106: =4*ATAN(-'Calcul courbes'!$C$2*B106+SQRT(('Calcul courbes'!$C$2)^2*B106^2+'Calcul courbes'!$C$3)) -> 0.2976228565 | D106: =IF(ROW()>$E$3+1,('Calcul courbes'!$C$8*LOG(B106)+'Calcul courbes'!$C$9),NA()) ->  | E106: 0.009120108394 | G106: =IF(ROW()<$E$3+1,'Calcul courbes'!$C$10,NA()) -> 0.2994068499
A107: -2.03 | B107: 0.009332543008 | C107: =4*ATAN(-'Calcul courbes'!$C$2*B107+SQRT(('Calcul courbes'!$C$2)^2*B107^2+'Calcul courbes'!$C$3)) -> 0.2975949606 | D107: =IF(ROW()>$E$3+1,('Calcul courbes'!$C$8*LOG(B107)+'Calcul courbes'!$C$9),NA()) ->  | E107: 0.009332543008 | G107: =IF(ROW()<$E$3+1,'Calcul courbes'!$C$10,NA()) -> 0.2994068499
A108: -2.02 | B108: 0.00954992586 | C108: =4*ATAN(-'Calcul courbes'!$C$2*B108+SQRT(('Calcul courbes'!$C$2)^2*B108^2+'Calcul courbes'!$C$3)) -> 0.2975664177 | D108: =IF(ROW()>$E$3+1,('Calcul courbes'!$C$8*LOG(B108)+'Calcul courbes'!$C$9),NA()) ->  | E108: 0.00954992586 | G108: =IF(ROW()<$E$3+1,'Calcul courbes'!$C$10,NA()) -> 0.2994068499
A109: -2.01 | B109: 0.00977237221 | C109: =4*ATAN(-'Calcul courbes'!$C$2*B109+SQRT(('Calcul courbes'!$C$2)^2*B109^2+'Calcul courbes'!$C$3)) -> 0.2975372127 | D109: =IF(ROW()>$E$3+1,('Calcul courbes'!$C$8*LOG(B109)+'Calcul courbes'!$C$9),NA()) ->  | E109: 0.00977237221 | G109: =IF(ROW()<$E$3+1,'Calcul courbes'!$C$10,NA()) -> 0.2994068499
A110: -2 | B110: 0.01 | C110: =4*ATAN(-'Calcul courbes'!$C$2*B110+SQRT(('Calcul courbes'!$C$2)^2*B110^2+'Calcul courbes'!$C$3)) -> 0.2975073304 | D110: =IF(ROW()>$E$3+1,('Calcul courbes'!$C$8*LOG(B110)+'Calcul courbes'!$C$9),NA()) ->  | E110: 0.01 | G110: =IF(ROW()<$E$3+1,'Calcul courbes'!$C$10,NA()) -> 0.2994068499
A111: -1.99 | B111: 0.01023292992 | C111: =4*ATAN(-'Calcul courbes'!$C$2*B111+SQRT(('Calcul courbes'!$C$2)^2*B111^2+'Calcul courbes'!$C$3)) -> 0.2974767552 | D111: =IF(ROW()>$E$3+1,('Calcul courbes'!$C$8*LOG(B111)+'Calcul courbes'!$C$9),NA()) ->  | E111: 0.01023292992 | G111: =IF(ROW()<$E$3+1,'Calcul courbes'!$C$10,NA()) -> 0.2994068499
A112: -1.98 | B112: 0.01047128548 | C112: =4*ATAN(-'Calcul courbes'!$C$2*B112+SQRT(('Calcul courbes'!$C$2)^2*B112^2+'Calcul courbes'!$C$3)) -> 0.297445471 | D112: =IF(ROW()>$E$3+1,('Calcul courbes'!$C$8*LOG(B112)+'Calcul courbes'!$C$9),NA()) ->  | E112: 0.01047128548 | G112: =IF(ROW()<$E$3+1,'Calcul courbes'!$C$10,NA()) -> 0.2994068499
A113: -1.97 | B113: 0.01071519305 | C113: =4*ATAN(-'Calcul courbes'!$C$2*B113+SQRT(('Calcul courbes'!$C$2)^2*B113^2+'Calcul courbes'!$C$3)) -> 0.2974134615 | D113: =IF(ROW()>$E$3+1,('Calcul courbes'!$C$8*LOG(B113)+'Calcul courbes'!$C$9),NA()) ->  | E113: 0.01071519305 | G113: =IF(ROW()<$E$3+1,'Calcul courbes'!$C$10,NA()) -> 0.2994068499
A114: -1.96 | B114: 0.01096478196 | C114: =4*ATAN(-'Calcul courbes'!$C$2*B114+SQRT(('Calcul courbes'!$C$2)^2*B114^2+'Calcul courbes'!$C$3)) -> 0.29738071 | D114: =IF(ROW()>$E$3+1,('Calcul courbes'!$C$8*LOG(B114)+'Calcul courbes'!$C$9),NA()) ->  | E114: 0.01096478196 | G114: =IF(ROW()<$E$3+1,'Calcul courbes'!$C$10,NA()) -> 0.2994068499
A115: -1.95 | B115: 0.01122018454 | C115: =4*ATAN(-'Calcul courbes'!$C$2*B115+SQRT(('Calcul courbes'!$C$2)^2*B115^2+'Calcul courbes'!$C$3)) -> 0.2973471993 | D115: =IF(ROW()>$E$3+1,('Calcul courbes'!$C$8*LOG(B115)+'Calcul courbes'!$C$9),NA()) ->  | E115: 0.01122018454 | G115: =IF(ROW()<$E$3+1,'Calcul courbes'!$C$10,NA()) -> 0.2994068499
A116: -1.94 | B116: 0.01148153621 | C116: =4*ATAN(-'Calcul courbes'!$C$2*B116+SQRT(('Calcul courbes'!$C$2)^2*B116^2+'Calcul courbes'!$C$3)) -> 0.297312912 | D116: =IF(ROW()>$E$3+1,('Calcul courbes'!$C$8*LOG(B116)+'Calcul courbes'!$C$9),NA()) ->  | E116: 0.01148153621 | G116: =IF(ROW()<$E$3+1,'Calcul courbes'!$C$10,NA()) -> 0.2994068499
A117: -1.93 | B117: 0.01174897555 | C117: =4*ATAN(-'Calcul courbes'!$C$2*B117+SQRT(('Calcul courbes'!$C$2)^2*B117^2+'Calcul courbes'!$C$3)) -> 0.2972778301 | D117: =IF(ROW()>$E$3+1,('Calcul courbes'!$C$8*LOG(B117)+'Calcul courbes'!$C$9),NA()) ->  | E117: 0.01174897555 | G117: =IF(ROW()<$E$3+1,'Calcul courbes'!$C$10,NA()) -> 0.2994068499
A118: -1.92 | B118: 0.01202264435 | C118: =4*ATAN(-'Calcul courbes'!$C$2*B118+SQRT(('Calcul courbes'!$C$2)^2*B118^2+'Calcul courbes'!$C$3)) -> 0.2972419353 | D118: =IF(ROW()>$E$3+1,('Calcul courbes'!$C$8*LOG(B118)+'Calcul courbes'!$C$9),NA()) ->  | E118: 0.01202264435 | G118: =IF(ROW()<$E$3+1,'Calcul courbes'!$C$10,NA()) -> 0.2994068499
A119: -1.91 | B119: 0.01230268771 | C119: =4*ATAN(-'Calcul courbes'!$C$2*B119+SQRT(('Calcul courbes'!$C$2)^2*B119^2+'Calcul courbes'!$C$3)) -> 0.2972052088 | D119: =IF(ROW()>$E$3+1,('Calcul courbes'!$C$8*LOG(B119)+'Calcul courbes'!$C$9),NA()) ->  | E119: 0.01230268771 | G119: =IF(ROW()<$E$3+1,'Calcul courbes'!$C$10,NA()) -> 0.2994068499
A120: -1.9 | B120: 0.01258925412 | C120: =4*ATAN(-'Calcul courbes'!$C$2*B120+SQRT(('Calcul courbes'!$C$2)^2*B120^2+'Calcul courbes'!$C$3)) -> 0.2971676316 | D120: =IF(ROW()>$E$3+1,('Calcul courbes'!$C$8*LOG(B120)+'Calcul courbes'!$C$9),NA()) ->  | E120: 0.01258925412 | G120: =IF(ROW()<$E$3+1,'Calcul courbes'!$C$10,NA()) -> 0.2994068499
A121: -1.89 | B121: 0.01288249552 | C121: =4*ATAN(-'Calcul courbes'!$C$2*B121+SQRT(('Calcul courbes'!$C$2)^2*B121^2+'Calcul courbes'!$C$3)) -> 0.297129184 | D121: =IF(ROW()>$E$3+1,('Calcul courbes'!$C$8*LOG(B121)+'Calcul courbes'!$C$9),NA()) ->  | E121: 0.01288249552 | G121: =IF(ROW()<$E$3+1,'Calcul courbes'!$C$10,NA()) -> 0.2994068499
A122: -1.88 | B122: 0.01318256739 | C122: =4*ATAN(-'Calcul courbes'!$C$2*B122+SQRT(('Calcul courbes'!$C$2)^2*B122^2+'Calcul courbes'!$C$3)) -> 0.2970898461 | D122: =IF(ROW()>$E$3+1,('Calcul courbes'!$C$8*LOG(B122)+'Calcul courbes'!$C$9),NA()) ->  | E122: 0.01318256739 | G122: =IF(ROW()<$E$3+1,'Calcul courbes'!$C$10,NA()) -> 0.2994068499
A123: -1.87 | B123: 0.01348962883 | C123: =4*ATAN(-'Calcul courbes'!$C$2*B123+SQRT(('Calcul courbes'!$C$2)^2*B123^2+'Calcul courbes'!$C$3)) -> 0.2970495971 | D123: =IF(ROW()>$E$3+1,('Calcul courbes'!$C$8*LOG(B123)+'Calcul courbes'!$C$9),NA()) ->  | E123: 0.01348962883 | G123: =IF(ROW()<$E$3+1,'Calcul courbes'!$C$10,NA()) -> 0.2994068499
A124: -1.86 | B124: 0.01380384265 | C124: =4*ATAN(-'Calcul courbes'!$C$2*B124+SQRT(('Calcul courbes'!$C$2)^2*B124^2+'Calcul courbes'!$C$3)) -> 0.2970084163 | D124: =IF(ROW()>$E$3+1,('Calcul courbes'!$C$8*LOG(B124)+'Calcul courbes'!$C$9),NA()) ->  | E124: 0.01380384265 | G124: =IF(ROW()<$E$3+1,'Calcul courbes'!$C$10,NA()) -> 0.2994068499
A125: -1.85 | B125: 0.01412537545 | C125: =4*ATAN(-'Calcul courbes'!$C$2*B125+SQRT(('Calcul courbes'!$C$2)^2*B125^2+'Calcul courbes'!$C$3)) -> 0.2969662822 | D125: =IF(ROW()>$E$3+1,('Calcul courbes'!$C$8*LOG(B125)+'Calcul courbes'!$C$9),NA()) ->  | E125: 0.01412537545 | G125: =IF(ROW()<$E$3+1,'Calcul courbes'!$C$10,NA()) -> 0.2994068499
A126: -1.84 | B126: 0.01445439771 | C126: =4*ATAN(-'Calcul courbes'!$C$2*B126+SQRT(('Calcul courbes'!$C$2)^2*B126^2+'Calcul courbes'!$C$3)) -> 0.2969231729 | D126: =IF(ROW()>$E$3+1,('Calcul courbes'!$C$8*LOG(B126)+'Calcul courbes'!$C$9),NA()) ->  | E126: 0.01445439771 | G126: =IF(ROW()<$E$3+1,'Calcul courbes'!$C$10,NA()) -> 0.2994068499
A127: -1.83 | B127: 0.01479108388 | C127: =4*ATAN(-'Calcul courbes'!$C$2*B127+SQRT(('Calcul courbes'!$C$2)^2*B127^2+'Calcul courbes'!$C$3)) -> 0.2968790658 | D127: =IF(ROW()>$E$3+1,('Calcul courbes'!$C$8*LOG(B127)+'Calcul courbes'!$C$9),NA()) ->  | E127: 0.01479108388 | G127: =IF(ROW()<$E$3+1,'Calcul courbes'!$C$10,NA()) -> 0.2994068499
A128: -1.82 | B128: 0.01513561248 | C128: =4*ATAN(-'Calcul courbes'!$C$2*B128+SQRT(('Calcul courbes'!$C$2)^2*B128^2+'Calcul courbes'!$C$3)) -> 0.2968339382 | D128: =IF(ROW()>$E$3+1,('Calcul courbes'!$C$8*LOG(B128)+'Calcul courbes'!$C$9),NA()) ->  | E128: 0.01513561248 | G128: =IF(ROW()<$E$3+1,'Calcul courbes'!$C$10,NA()) -> 0.2994068499
A129: -1.81 | B129: 0.01548816619 | C129: =4*ATAN(-'Calcul courbes'!$C$2*B129+SQRT(('Calcul courbes'!$C$2)^2*B129^2+'Calcul courbes'!$C$3)) -> 0.2967877665 | D129: =IF(ROW()>$E$3+1,('Calcul courbes'!$C$8*LOG(B129)+'Calcul courbes'!$C$9),NA()) ->  | E129: 0.01548816619 | G129: =IF(ROW()<$E$3+1,'Calcul courbes'!$C$10,NA()) -> 0.2994068499
A130: -1.8 | B130: 0.01584893192 | C130: =4*ATAN(-'Calcul courbes'!$C$2*B130+SQRT(('Calcul courbes'!$C$2)^2*B130^2+'Calcul courbes'!$C$3)) -> 0.2967405267 | D130: =IF(ROW()>$E$3+1,('Calcul courbes'!$C$8*LOG(B130)+'Calcul courbes'!$C$9),NA()) ->  | E130: 0.01584893192 | G130: =IF(ROW()<$E$3+1,'Calcul courbes'!$C$10,NA()) -> 0.2994068499
A131: -1.79 | B131: 0.01621810097 | C131: =4*ATAN(-'Calcul courbes'!$C$2*B131+SQRT(('Calcul courbes'!$C$2)^2*B131^2+'Calcul courbes'!$C$3)) -> 0.2966921944 | D131: =IF(ROW()>$E$3+1,('Calcul courbes'!$C$8*LOG(B131)+'Calcul courbes'!$C$9),NA()) ->  | E131: 0.01621810097 | G131: =IF(ROW()<$E$3+1,'Calcul courbes'!$C$10,NA()) -> 0.2994068499
A132: -1.78 | B132: 0.01659586907 | C132: =4*ATAN(-'Calcul courbes'!$C$2*B132+SQRT(('Calcul courbes'!$C$2)^2*B132^2+'Calcul courbes'!$C$3)) -> 0.2966427444 | D132: =IF(ROW()>$E$3+1,('Calcul courbes'!$C$8*LOG(B132)+'Calcul courbes'!$C$9),NA()) ->  | E132: 0.01659586907 | G132: =IF(ROW()<$E$3+1,'Calcul courbes'!$C$10,NA()) -> 0.2994068499
A133: -1.77 | B133: 0.01698243652 | C133: =4*ATAN(-'Calcul courbes'!$C$2*B133+SQRT(('Calcul courbes'!$C$2)^2*B133^2+'Calcul courbes'!$C$3)) -> 0.2965921511 | D133: =IF(ROW()>$E$3+1,('Calcul courbes'!$C$8*LOG(B133)+'Calcul courbes'!$C$9),NA()) ->  | E133: 0.01698243652 | G133: =IF(ROW()<$E$3+1,'Calcul courbes'!$C$10,NA()) -> 0.2994068499
A134: -1.76 | B134: 0.01737800829 | C134: =4*ATAN(-'Calcul courbes'!$C$2*B134+SQRT(('Calcul courbes'!$C$2)^2*B134^2+'Calcul courbes'!$C$3)) -> 0.2965403883 | D134: =IF(ROW()>$E$3+1,('Calcul courbes'!$C$8*LOG(B134)+'Calcul courbes'!$C$9),NA()) ->  | E134: 0.01737800829 | G134: =IF(ROW()<$E$3+1,'Calcul courbes'!$C$10,NA()) -> 0.2994068499
A135: -1.75 | B135: 0.0177827941 | C135: =4*ATAN(-'Calcul courbes'!$C$2*B135+SQRT(('Calcul courbes'!$C$2)^2*B135^2+'Calcul courbes'!$C$3)) -> 0.2964874291 | D135: =IF(ROW()>$E$3+1,('Calcul courbes'!$C$8*LOG(B135)+'Calcul courbes'!$C$9),NA()) ->  | E135: 0.0177827941 | G135: =IF(ROW()<$E$3+1,'Calcul courbes'!$C$10,NA()) -> 0.2994068499
A136: -1.74 | B136: 0.01819700859 | C136: =4*ATAN(-'Calcul courbes'!$C$2*B136+SQRT(('Calcul courbes'!$C$2)^2*B136^2+'Calcul courbes'!$C$3)) -> 0.2964332462 | D136: =IF(ROW()>$E$3+1,('Calcul courbes'!$C$8*LOG(B136)+'Calcul courbes'!$C$9),NA()) ->  | E136: 0.01819700859 | G136: =IF(ROW()<$E$3+1,'Calcul courbes'!$C$10,NA()) -> 0.2994068499
A137: -1.73 | B137: 0.01862087137 | C137: =4*ATAN(-'Calcul courbes'!$C$2*B137+SQRT(('Calcul courbes'!$C$2)^2*B137^2+'Calcul courbes'!$C$3)) -> 0.2963778114 | D137: =IF(ROW()>$E$3+1,('Calcul courbes'!$C$8*LOG(B137)+'Calcul courbes'!$C$9),NA()) ->  | E137: 0.01862087137 | G137: =IF(ROW()<$E$3+1,'Calcul courbes'!$C$10,NA()) -> 0.2994068499
A138: -1.72 | B138: 0.01905460718 | C138: =4*ATAN(-'Calcul courbes'!$C$2*B138+SQRT(('Calcul courbes'!$C$2)^2*B138^2+'Calcul courbes'!$C$3)) -> 0.2963210961 | D138: =IF(ROW()>$E$3+1,('Calcul courbes'!$C$8*LOG(B138)+'Calcul courbes'!$C$9),NA()) ->  | E138: 0.01905460718 | G138: =IF(ROW()<$E$3+1,'Calcul courbes'!$C$10,NA()) -> 0.2994068499
A139: -1.71 | B139: =10^A139 -> 0.019498446 | C139: =4*ATAN(-'Calcul courbes'!$C$2*B139+SQRT(('Calcul courbes'!$C$2)^2*B139^2+'Calcul courbes'!$C$3)) -> 0.296263071 | D139: =IF(ROW()>$E$3+1,('Calcul courbes'!$C$8*LOG(B139)+'Calcul courbes'!$C$9),NA()) ->  | E139: =IF(ROW()<$F$3+1,B139,NA()) -> 0.019498446 | F139: =IF(ROW()>$E$3+1,E139,NA()) ->  | G139: =IF(ROW()<$E$3+1,'Calcul courbes'!$C$10,NA()) -> 0.2994068499 | H139: =IF(ROW()>$F$3-1,0,NA()) ->  | I139: =IF(ROW()=$F$3-1,0,NA()) -> 
A140: -1.7 | B140: 0.01995262315 | C140: =4*ATAN(-'Calcul courbes'!$C$2*B140+SQRT(('Calcul courbes'!$C$2)^2*B140^2+'Calcul courbes'!$C$3)) -> 0.2962037061 | D140: =IF(ROW()>$E$3+1,('Calcul courbes'!$C$8*LOG(B140)+'Calcul courbes'!$C$9),NA()) ->  | E140: 0.01995262315 | G140: =IF(ROW()<$E$3+1,'Calcul courbes'!$C$10,NA()) -> 0.2994068499
A141: -1.69 | B141: 0.02041737945 | C141: =4*ATAN(-'Calcul courbes'!$C$2*B141+SQRT(('Calcul courbes'!$C$2)^2*B141^2+'Calcul courbes'!$C$3)) -> 0.2961429707 | D141: =IF(ROW()>$E$3+1,('Calcul courbes'!$C$8*LOG(B141)+'Calcul courbes'!$C$9),NA()) ->  | E141: 0.02041737945 | G141: =IF(ROW()<$E$3+1,'Calcul courbes'!$C$10,NA()) -> 0.2994068499
A142: -1.68 | B142: 0.02089296131 | C142: =4*ATAN(-'Calcul courbes'!$C$2*B142+SQRT(('Calcul courbes'!$C$2)^2*B142^2+'Calcul courbes'!$C$3)) -> 0.2960808336 | D142: =IF(ROW()>$E$3+1,('Calcul courbes'!$C$8*LOG(B142)+'Calcul courbes'!$C$9),NA()) ->  | E142: 0.02089296131 | G142: =IF(ROW()<$E$3+1,'Calcul courbes'!$C$10,NA()) -> 0.2994068499
A143: -1.67 | B143: 0.0213796209 | C143: =4*ATAN(-'Calcul courbes'!$C$2*B143+SQRT(('Calcul courbes'!$C$2)^2*B143^2+'Calcul courbes'!$C$3)) -> 0.2960172626 | D143: =IF(ROW()>$E$3+1,('Calcul courbes'!$C$8*LOG(B143)+'Calcul courbes'!$C$9),NA()) ->  | E143: 0.0213796209 | G143: =IF(ROW()<$E$3+1,'Calcul courbes'!$C$10,NA()) -> 0.2994068499
A144: -1.66 | B144: 0.02187761624 | C144: =4*ATAN(-'Calcul courbes'!$C$2*B144+SQRT(('Calcul courbes'!$C$2)^2*B144^2+'Calcul courbes'!$C$3)) -> 0.295952225 | D144: =IF(ROW()>$E$3+1,('Calcul courbes'!$C$8*LOG(B144)+'Calcul courbes'!$C$9),NA()) ->  | E144: 0.02187761624 | G144: =IF(ROW()<$E$3+1,'Calcul courbes'!$C$10,NA()) -> 0.2994068499
A145: -1.65 | B145: 0.02238721139 | C145: =4*ATAN(-'Calcul courbes'!$C$2*B145+SQRT(('Calcul courbes'!$C$2)^2*B145^2+'Calcul courbes'!$C$3)) -> 0.2958856873 | D145: =IF(ROW()>$E$3+1,('Calcul courbes'!$C$8*LOG(B145)+'Calcul courbes'!$C$9),NA()) ->  | E145: 0.02238721139 | G145: =IF(ROW()<$E$3+1,'Calcul courbes'!$C$10,NA()) -> 0.2994068499
A146: -1.64 | B146: 0.02290867653 | C146: =4*ATAN(-'Calcul courbes'!$C$2*B146+SQRT(('Calcul courbes'!$C$2)^2*B146^2+'Calcul courbes'!$C$3)) -> 0.2958176153 | D146: =IF(ROW()>$E$3+1,('Calcul courbes'!$C$8*LOG(B146)+'Calcul courbes'!$C$9),NA()) ->  | E146: 0.02290867653 | G146: =IF(ROW()<$E$3+1,'Calcul courbes'!$C$10,NA()) -> 0.2994068499
A147: -1.63 | B147: 0.02344228815 | C147: =4*ATAN(-'Calcul courbes'!$C$2*B147+SQRT(('Calcul courbes'!$C$2)^2*B147^2+'Calcul courbes'!$C$3)) -> 0.295747974 | D147: =IF(ROW()>$E$3+1,('Calcul courbes'!$C$8*LOG(B147)+'Calcul courbes'!$C$9),NA()) ->  | E147: 0.02344228815 | G147: =IF(ROW()<$E$3+1,'Calcul courbes'!$C$10,NA()) -> 0.2994068499
A148: -1.62 | B148: 0.02398832919 | C148: =4*ATAN(-'Calcul courbes'!$C$2*B148+SQRT(('Calcul courbes'!$C$2)^2*B148^2+'Calcul courbes'!$C$3)) -> 0.2956767275 | D148: =IF(ROW()>$E$3+1,('Calcul courbes'!$C$8*LOG(B148)+'Calcul courbes'!$C$9),NA()) ->  | E148: 0.02398832919 | G148: =IF(ROW()<$E$3+1,'Calcul courbes'!$C$10,NA()) -> 0.2994068499
A149: -1.61 | B149: 0.02454708916 | C149: =4*ATAN(-'Calcul courbes'!$C$2*B149+SQRT(('Calcul courbes'!$C$2)^2*B149^2+'Calcul courbes'!$C$3)) -> 0.2956038393 | D149: =IF(ROW()>$E$3+1,('Calcul courbes'!$C$8*LOG(B149)+'Calcul courbes'!$C$9),NA()) ->  | E149: 0.02454708916 | G149: =IF(ROW()<$E$3+1,'Calcul courbes'!$C$10,NA()) -> 0.2994068499
A150: -1.6 | B150: 0.02511886432 | C150: =4*ATAN(-'Calcul courbes'!$C$2*B150+SQRT(('Calcul courbes'!$C$2)^2*B150^2+'Calcul courbes'!$C$3)) -> 0.295529272 | D150: =IF(ROW()>$E$3+1,('Calcul courbes'!$C$8*LOG(B150)+'Calcul courbes'!$C$9),NA()) ->  | E150: 0.02511886432 | G150: =IF(ROW()<$E$3+1,'Calcul courbes'!$C$10,NA()) -> 0.2994068499
A151: -1.59 | B151: 0.02570395783 | C151: =4*ATAN(-'Calcul courbes'!$C$2*B151+SQRT(('Calcul courbes'!$C$2)^2*B151^2+'Calcul courbes'!$C$3)) -> 0.2954529873 | D151: =IF(ROW()>$E$3+1,('Calcul courbes'!$C$8*LOG(B151)+'Calcul courbes'!$C$9),NA()) ->  | E151: 0.02570395783 | G151: =IF(ROW()<$E$3+1,'Calcul courbes'!$C$10,NA()) -> 0.2994068499
A152: -1.58 | B152: 0.02630267992 | C152: =4*ATAN(-'Calcul courbes'!$C$2*B152+SQRT(('Calcul courbes'!$C$2)^2*B152^2+'Calcul courbes'!$C$3)) -> 0.2953749462 | D152: =IF(ROW()>$E$3+1,('Calcul courbes'!$C$8*LOG(B152)+'Calcul courbes'!$C$9),NA()) ->  | E152: 0.02630267992 | G152: =IF(ROW()<$E$3+1,'Calcul courbes'!$C$10,NA()) -> 0.2994068499
A153: -1.57 | B153: 0.02691534804 | C153: =4*ATAN(-'Calcul courbes'!$C$2*B153+SQRT(('Calcul courbes'!$C$2)^2*B153^2+'Calcul courbes'!$C$3)) -> 0.2952951087 | D153: =IF(ROW()>$E$3+1,('Calcul courbes'!$C$8*LOG(B153)+'Calcul courbes'!$C$9),NA()) ->  | E153: 0.02691534804 | G153: =IF(ROW()<$E$3+1,'Calcul courbes'!$C$10,NA()) -> 0.2994068499
A154: -1.56 | B154: 0.02754228703 | C154: =4*ATAN(-'Calcul courbes'!$C$2*B154+SQRT(('Calcul courbes'!$C$2)^2*B154^2+'Calcul courbes'!$C$3)) -> 0.295213434 | D154: =IF(ROW()>$E$3+1,('Calcul courbes'!$C$8*LOG(B154)+'Calcul courbes'!$C$9),NA()) ->  | E154: 0.02754228703 | G154: =IF(ROW()<$E$3+1,'Calcul courbes'!$C$10,NA()) -> 0.2994068499
A155: -1.55 | B155: 0.02818382931 | C155: =4*ATAN(-'Calcul courbes'!$C$2*B155+SQRT(('Calcul courbes'!$C$2)^2*B155^2+'Calcul courbes'!$C$3)) -> 0.2951298804 | D155: =IF(ROW()>$E$3+1,('Calcul courbes'!$C$8*LOG(B155)+'Calcul courbes'!$C$9),NA()) ->  | E155: 0.02818382931 | G155: =IF(ROW()<$E$3+1,'Calcul courbes'!$C$10,NA()) -> 0.2994068499
A156: -1.54 | B156: 0.02884031503 | C156: =4*ATAN(-'Calcul courbes'!$C$2*B156+SQRT(('Calcul courbes'!$C$2)^2*B156^2+'Calcul courbes'!$C$3)) -> 0.2950444052 | D156: =IF(ROW()>$E$3+1,('Calcul courbes'!$C$8*LOG(B156)+'Calcul courbes'!$C$9),NA()) ->  | E156: 0.02884031503 | G156: =IF(ROW()<$E$3+1,'Calcul courbes'!$C$10,NA()) -> 0.2994068499
A157: -1.53 | B157: 0.02951209227 | C157: =4*ATAN(-'Calcul courbes'!$C$2*B157+SQRT(('Calcul courbes'!$C$2)^2*B157^2+'Calcul courbes'!$C$3)) -> 0.2949569647 | D157: =IF(ROW()>$E$3+1,('Calcul courbes'!$C$8*LOG(B157)+'Calcul courbes'!$C$9),NA()) ->  | E157: 0.02951209227 | G157: =IF(ROW()<$E$3+1,'Calcul courbes'!$C$10,NA()) -> 0.2994068499
A158: -1.52 | B158: 0.0301995172 | C158: =4*ATAN(-'Calcul courbes'!$C$2*B158+SQRT(('Calcul courbes'!$C$2)^2*B158^2+'Calcul courbes'!$C$3)) -> 0.2948675145 | D158: =IF(ROW()>$E$3+1,('Calcul courbes'!$C$8*LOG(B158)+'Calcul courbes'!$C$9),NA()) ->  | E158: 0.0301995172 | G158: =IF(ROW()<$E$3+1,'Calcul courbes'!$C$10,NA()) -> 0.2994068499
A159: -1.51 | B159: 0.03090295433 | C159: =4*ATAN(-'Calcul courbes'!$C$2*B159+SQRT(('Calcul courbes'!$C$2)^2*B159^2+'Calcul courbes'!$C$3)) -> 0.294776009 | D159: =IF(ROW()>$E$3+1,('Calcul courbes'!$C$8*LOG(B159)+'Calcul courbes'!$C$9),NA()) ->  | E159: 0.03090295433 | G159: =IF(ROW()<$E$3+1,'Calcul courbes'!$C$10,NA()) -> 0.2994068499
A160: -1.5 | B160: 0.0316227766 | C160: =4*ATAN(-'Calcul courbes'!$C$2*B160+SQRT(('Calcul courbes'!$C$2)^2*B160^2+'Calcul courbes'!$C$3)) -> 0.2946824017 | D160: =IF(ROW()>$E$3+1,('Calcul courbes'!$C$8*LOG(B160)+'Calcul courbes'!$C$9),NA()) ->  | E160: 0.0316227766 | G160: =IF(ROW()<$E$3+1,'Calcul courbes'!$C$10,NA()) -> 0.2994068499
A161: -1.49 | B161: 0.03235936569 | C161: =4*ATAN(-'Calcul courbes'!$C$2*B161+SQRT(('Calcul courbes'!$C$2)^2*B161^2+'Calcul courbes'!$C$3)) -> 0.2945866449 | D161: =IF(ROW()>$E$3+1,('Calcul courbes'!$C$8*LOG(B161)+'Calcul courbes'!$C$9),NA()) ->  | E161: 0.03235936569 | G161: =IF(ROW()<$E$3+1,'Calcul courbes'!$C$10,NA()) -> 0.2994068499
A162: -1.48 | B162: 0.03311311215 | C162: =4*ATAN(-'Calcul courbes'!$C$2*B162+SQRT(('Calcul courbes'!$C$2)^2*B162^2+'Calcul courbes'!$C$3)) -> 0.2944886901 | D162: =IF(ROW()>$E$3+1,('Calcul courbes'!$C$8*LOG(B162)+'Calcul courbes'!$C$9),NA()) ->  | E162: 0.03311311215 | G162: =IF(ROW()<$E$3+1,'Calcul courbes'!$C$10,NA()) -> 0.2994068499
A163: -1.47 | B163: 0.03388441561 | C163: =4*ATAN(-'Calcul courbes'!$C$2*B163+SQRT(('Calcul courbes'!$C$2)^2*B163^2+'Calcul courbes'!$C$3)) -> 0.2943884876 | D163: =IF(ROW()>$E$3+1,('Calcul courbes'!$C$8*LOG(B163)+'Calcul courbes'!$C$9),NA()) ->  | E163: 0.03388441561 | G163: =IF(ROW()<$E$3+1,'Calcul courbes'!$C$10,NA()) -> 0.2994068499
A164: -1.46 | B164: 0.03467368505 | C164: =4*ATAN(-'Calcul courbes'!$C$2*B164+SQRT(('Calcul courbes'!$C$2)^2*B164^2+'Calcul courbes'!$C$3)) -> 0.2942859867 | D164: =IF(ROW()>$E$3+1,('Calcul courbes'!$C$8*LOG(B164)+'Calcul courbes'!$C$9),NA()) ->  | E164: 0.03467368505 | G164: =IF(ROW()<$E$3+1,'Calcul courbes'!$C$10,NA()) -> 0.2994068499
A165: -1.45 | B165: 0.03548133892 | C165: =4*ATAN(-'Calcul courbes'!$C$2*B165+SQRT(('Calcul courbes'!$C$2)^2*B165^2+'Calcul courbes'!$C$3)) -> 0.2941811354 | D165: =IF(ROW()>$E$3+1,('Calcul courbes'!$C$8*LOG(B165)+'Calcul courbes'!$C$9),NA()) ->  | E165: 0.03548133892 | G165: =IF(ROW()<$E$3+1,'Calcul courbes'!$C$10,NA()) -> 0.2994068499
A166: -1.44 | B166: 0.03630780548 | C166: =4*ATAN(-'Calcul courbes'!$C$2*B166+SQRT(('Calcul courbes'!$C$2)^2*B166^2+'Calcul courbes'!$C$3)) -> 0.2940738809 | D166: =IF(ROW()>$E$3+1,('Calcul courbes'!$C$8*LOG(B166)+'Calcul courbes'!$C$9),NA()) ->  | E166: 0.03630780548 | G166: =IF(ROW()<$E$3+1,'Calcul courbes'!$C$10,NA()) -> 0.2994068499
A167: -1.43 | B167: 0.03715352291 | C167: =4*ATAN(-'Calcul courbes'!$C$2*B167+SQRT(('Calcul courbes'!$C$2)^2*B167^2+'Calcul courbes'!$C$3)) -> 0.293964169 | D167: =IF(ROW()>$E$3+1,('Calcul courbes'!$C$8*LOG(B167)+'Calcul courbes'!$C$9),NA()) ->  | E167: 0.03715352291 | G167: =IF(ROW()<$E$3+1,'Calcul courbes'!$C$10,NA()) -> 0.2994068499
A168: -1.42 | B168: 0.03801893963 | C168: =4*ATAN(-'Calcul courbes'!$C$2*B168+SQRT(('Calcul courbes'!$C$2)^2*B168^2+'Calcul courbes'!$C$3)) -> 0.2938519442 | D168: =IF(ROW()>$E$3+1,('Calcul courbes'!$C$8*LOG(B168)+'Calcul courbes'!$C$9),NA()) ->  | E168: 0.03801893963 | G168: =IF(ROW()<$E$3+1,'Calcul courbes'!$C$10,NA()) -> 0.2994068499
A169: -1.41 | B169: 0.0389045145 | C169: =4*ATAN(-'Calcul courbes'!$C$2*B169+SQRT(('Calcul courbes'!$C$2)^2*B169^2+'Calcul courbes'!$C$3)) -> 0.2937371502 | D169: =IF(ROW()>$E$3+1,('Calcul courbes'!$C$8*LOG(B169)+'Calcul courbes'!$C$9),NA()) ->  | E169: 0.0389045145 | G169: =IF(ROW()<$E$3+1,'Calcul courbes'!$C$10,NA()) -> 0.2994068499
A170: -1.4 | B170: 0.03981071706 | C170: =4*ATAN(-'Calcul courbes'!$C$2*B170+SQRT(('Calcul courbes'!$C$2)^2*B170^2+'Calcul courbes'!$C$3)) -> 0.2936197292 | D170: =IF(ROW()>$E$3+1,('Calcul courbes'!$C$8*LOG(B170)+'Calcul courbes'!$C$9),NA()) ->  | E170: 0.03981071706 | G170: =IF(ROW()<$E$3+1,'Calcul courbes'!$C$10,NA()) -> 0.2994068499
A171: -1.39 | B171: 0.04073802778 | C171: =4*ATAN(-'Calcul courbes'!$C$2*B171+SQRT(('Calcul courbes'!$C$2)^2*B171^2+'Calcul courbes'!$C$3)) -> 0.2934996223 | D171: =IF(ROW()>$E$3+1,('Calcul courbes'!$C$8*LOG(B171)+'Calcul courbes'!$C$9),NA()) ->  | E171: 0.04073802778 | G171: =IF(ROW()<$E$3+1,'Calcul courbes'!$C$10,NA()) -> 0.2994068499
A172: -1.38 | B172: 0.04168693835 | C172: =4*ATAN(-'Calcul courbes'!$C$2*B172+SQRT(('Calcul courbes'!$C$2)^2*B172^2+'Calcul courbes'!$C$3)) -> 0.2933767691 | D172: =IF(ROW()>$E$3+1,('Calcul courbes'!$C$8*LOG(B172)+'Calcul courbes'!$C$9),NA()) ->  | E172: 0.04168693835 | G172: =IF(ROW()<$E$3+1,'Calcul courbes'!$C$10,NA()) -> 0.2994068499
A173: -1.37 | B173: 0.04265795188 | C173: =4*ATAN(-'Calcul courbes'!$C$2*B173+SQRT(('Calcul courbes'!$C$2)^2*B173^2+'Calcul courbes'!$C$3)) -> 0.2932511081 | D173: =IF(ROW()>$E$3+1,('Calcul courbes'!$C$8*LOG(B173)+'Calcul courbes'!$C$9),NA()) ->  | E173: 0.04265795188 | G173: =IF(ROW()<$E$3+1,'Calcul courbes'!$C$10,NA()) -> 0.2994068499
A174: -1.36 | B174: 0.04365158322 | C174: =4*ATAN(-'Calcul courbes'!$C$2*B174+SQRT(('Calcul courbes'!$C$2)^2*B174^2+'Calcul courbes'!$C$3)) -> 0.2931225764 | D174: =IF(ROW()>$E$3+1,('Calcul courbes'!$C$8*LOG(B174)+'Calcul courbes'!$C$9),NA()) ->  | E174: 0.04365158322 | G174: =IF(ROW()<$E$3+1,'Calcul courbes'!$C$10,NA()) -> 0.2994068499
A175: -1.35 | B175: 0.04466835922 | C175: =4*ATAN(-'Calcul courbes'!$C$2*B175+SQRT(('Calcul courbes'!$C$2)^2*B175^2+'Calcul courbes'!$C$3)) -> 0.2929911099 | D175: =IF(ROW()>$E$3+1,('Calcul courbes'!$C$8*LOG(B175)+'Calcul courbes'!$C$9),NA()) ->  | E175: 0.04466835922 | G175: =IF(ROW()<$E$3+1,'Calcul courbes'!$C$10,NA()) -> 0.2994068499
A176: -1.34 | B176: 0.04570881896 | C176: =4*ATAN(-'Calcul courbes'!$C$2*B176+SQRT(('Calcul courbes'!$C$2)^2*B176^2+'Calcul courbes'!$C$3)) -> 0.292856643 | D176: =IF(ROW()>$E$3+1,('Calcul courbes'!$C$8*LOG(B176)+'Calcul courbes'!$C$9),NA()) ->  | E176: 0.04570881896 | G176: =IF(ROW()<$E$3+1,'Calcul courbes'!$C$10,NA()) -> 0.2994068499
A177: -1.33 | B177: 0.04677351413 | C177: =4*ATAN(-'Calcul courbes'!$C$2*B177+SQRT(('Calcul courbes'!$C$2)^2*B177^2+'Calcul courbes'!$C$3)) -> 0.2927191087 | D177: =IF(ROW()>$E$3+1,('Calcul courbes'!$C$8*LOG(B177)+'Calcul courbes'!$C$9),NA()) ->  | E177: 0.04677351413 | G177: =IF(ROW()<$E$3+1,'Calcul courbes'!$C$10,NA()) -> 0.2994068499
A178: -1.32 | B178: 0.04786300923 | C178: =4*ATAN(-'Calcul courbes'!$C$2*B178+SQRT(('Calcul courbes'!$C$2)^2*B178^2+'Calcul courbes'!$C$3)) -> 0.2925784385 | D178: =IF(ROW()>$E$3+1,('Calcul courbes'!$C$8*LOG(B178)+'Calcul courbes'!$C$9),NA()) ->  | E178: 0.04786300923 | G178: =IF(ROW()<$E$3+1,'Calcul courbes'!$C$10,NA()) -> 0.2994068499
A179: -1.31 | B179: 0.04897788194 | C179: =4*ATAN(-'Calcul courbes'!$C$2*B179+SQRT(('Calcul courbes'!$C$2)^2*B179^2+'Calcul courbes'!$C$3)) -> 0.2924345627 | D179: =IF(ROW()>$E$3+1,('Calcul courbes'!$C$8*LOG(B179)+'Calcul courbes'!$C$9),NA()) ->  | E179: 0.04897788194 | G179: =IF(ROW()<$E$3+1,'Calcul courbes'!$C$10,NA()) -> 0.2994068499
A180: -1.3 | B180: 0.05011872336 | C180: =4*ATAN(-'Calcul courbes'!$C$2*B180+SQRT(('Calcul courbes'!$C$2)^2*B180^2+'Calcul courbes'!$C$3)) -> 0.2922874099 | D180: =IF(ROW()>$E$3+1,('Calcul courbes'!$C$8*LOG(B180)+'Calcul courbes'!$C$9),NA()) ->  | E180: 0.05011872336 | G180: =IF(ROW()<$E$3+1,'Calcul courbes'!$C$10,NA()) -> 0.2994068499
A181: -1.29 | B181: 0.0512861384 | C181: =4*ATAN(-'Calcul courbes'!$C$2*B181+SQRT(('Calcul courbes'!$C$2)^2*B181^2+'Calcul courbes'!$C$3)) -> 0.2921369073 | D181: =IF(ROW()>$E$3+1,('Calcul courbes'!$C$8*LOG(B181)+'Calcul courbes'!$C$9),NA()) ->  | E181: 0.0512861384 | G181: =IF(ROW()<$E$3+1,'Calcul courbes'!$C$10,NA()) -> 0.2994068499
A182: -1.28 | B182: 0.05248074602 | C182: =4*ATAN(-'Calcul courbes'!$C$2*B182+SQRT(('Calcul courbes'!$C$2)^2*B182^2+'Calcul courbes'!$C$3)) -> 0.2919829805 | D182: =IF(ROW()>$E$3+1,('Calcul courbes'!$C$8*LOG(B182)+'Calcul courbes'!$C$9),NA()) ->  | E182: 0.05248074602 | G182: =IF(ROW()<$E$3+1,'Calcul courbes'!$C$10,NA()) -> 0.2994068499
A183: -1.27 | B183: 0.05370317964 | C183: =4*ATAN(-'Calcul courbes'!$C$2*B183+SQRT(('Calcul courbes'!$C$2)^2*B183^2+'Calcul courbes'!$C$3)) -> 0.2918255536 | D183: =IF(ROW()>$E$3+1,('Calcul courbes'!$C$8*LOG(B183)+'Calcul courbes'!$C$9),NA()) ->  | E183: 0.05370317964 | G183: =IF(ROW()<$E$3+1,'Calcul courbes'!$C$10,NA()) -> 0.2994068499
A184: -1.26 | B184: 0.05495408739 | C184: =4*ATAN(-'Calcul courbes'!$C$2*B184+SQRT(('Calcul courbes'!$C$2)^2*B184^2+'Calcul courbes'!$C$3)) -> 0.2916645491 | D184: =IF(ROW()>$E$3+1,('Calcul courbes'!$C$8*LOG(B184)+'Calcul courbes'!$C$9),NA()) ->  | E184: 0.05495408739 | G184: =IF(ROW()<$E$3+1,'Calcul courbes'!$C$10,NA()) -> 0.2994068499
A185: -1.25 | B185: 0.05623413252 | C185: =4*ATAN(-'Calcul courbes'!$C$2*B185+SQRT(('Calcul courbes'!$C$2)^2*B185^2+'Calcul courbes'!$C$3)) -> 0.2914998879 | D185: =IF(ROW()>$E$3+1,('Calcul courbes'!$C$8*LOG(B185)+'Calcul courbes'!$C$9),NA()) ->  | E185: 0.05623413252 | G185: =IF(ROW()<$E$3+1,'Calcul courbes'!$C$10,NA()) -> 0.2994068499
A186: -1.24 | B186: 0.05754399373 | C186: =4*ATAN(-'Calcul courbes'!$C$2*B186+SQRT(('Calcul courbes'!$C$2)^2*B186^2+'Calcul courbes'!$C$3)) -> 0.2913314892 | D186: =IF(ROW()>$E$3+1,('Calcul courbes'!$C$8*LOG(B186)+'Calcul courbes'!$C$9),NA()) ->  | E186: 0.05754399373 | G186: =IF(ROW()<$E$3+1,'Calcul courbes'!$C$10,NA()) -> 0.2994068499
A187: -1.23 | B187: 0.05888436554 | C187: =4*ATAN(-'Calcul courbes'!$C$2*B187+SQRT(('Calcul courbes'!$C$2)^2*B187^2+'Calcul courbes'!$C$3)) -> 0.2911592705 | D187: =IF(ROW()>$E$3+1,('Calcul courbes'!$C$8*LOG(B187)+'Calcul courbes'!$C$9),NA()) ->  | E187: 0.05888436554 | G187: =IF(ROW()<$E$3+1,'Calcul courbes'!$C$10,NA()) -> 0.2994068499
A188: -1.22 | B188: 0.06025595861 | C188: =4*ATAN(-'Calcul courbes'!$C$2*B188+SQRT(('Calcul courbes'!$C$2)^2*B188^2+'Calcul courbes'!$C$3)) -> 0.2909831478 | D188: =IF(ROW()>$E$3+1,('Calcul courbes'!$C$8*LOG(B188)+'Calcul courbes'!$C$9),NA()) ->  | E188: 0.06025595861 | G188: =IF(ROW()<$E$3+1,'Calcul courbes'!$C$10,NA()) -> 0.2994068499
A189: -1.21 | B189: 0.06165950019 | C189: =4*ATAN(-'Calcul courbes'!$C$2*B189+SQRT(('Calcul courbes'!$C$2)^2*B189^2+'Calcul courbes'!$C$3)) -> 0.2908030351 | D189: =IF(ROW()>$E$3+1,('Calcul courbes'!$C$8*LOG(B189)+'Calcul courbes'!$C$9),NA()) ->  | E189: 0.06165950019 | G189: =IF(ROW()<$E$3+1,'Calcul courbes'!$C$10,NA()) -> 0.2994068499
A190: -1.2 | B190: 0.06309573445 | C190: =4*ATAN(-'Calcul courbes'!$C$2*B190+SQRT(('Calcul courbes'!$C$2)^2*B190^2+'Calcul courbes'!$C$3)) -> 0.2906188448 | D190: =IF(ROW()>$E$3+1,('Calcul courbes'!$C$8*LOG(B190)+'Calcul courbes'!$C$9),NA()) ->  | E190: 0.06309573445 | G190: =IF(ROW()<$E$3+1,'Calcul courbes'!$C$10,NA()) -> 0.2994068499
A191: -1.19 | B191: 0.0645654229 | C191: =4*ATAN(-'Calcul courbes'!$C$2*B191+SQRT(('Calcul courbes'!$C$2)^2*B191^2+'Calcul courbes'!$C$3)) -> 0.2904304874 | D191: =IF(ROW()>$E$3+1,('Calcul courbes'!$C$8*LOG(B191)+'Calcul courbes'!$C$9),NA()) ->  | E191: 0.0645654229 | G191: =IF(ROW()<$E$3+1,'Calcul courbes'!$C$10,NA()) -> 0.2994068499
A192: -1.18 | B192: 0.0660693448 | C192: =4*ATAN(-'Calcul courbes'!$C$2*B192+SQRT(('Calcul courbes'!$C$2)^2*B192^2+'Calcul courbes'!$C$3)) -> 0.2902378718 | D192: =IF(ROW()>$E$3+1,('Calcul courbes'!$C$8*LOG(B192)+'Calcul courbes'!$C$9),NA()) ->  | E192: 0.0660693448 | G192: =IF(ROW()<$E$3+1,'Calcul courbes'!$C$10,NA()) -> 0.2994068499
A193: -1.17 | B193: 0.06760829754 | C193: =4*ATAN(-'Calcul courbes'!$C$2*B193+SQRT(('Calcul courbes'!$C$2)^2*B193^2+'Calcul courbes'!$C$3)) -> 0.2900409047 | D193: =IF(ROW()>$E$3+1,('Calcul courbes'!$C$8*LOG(B193)+'Calcul courbes'!$C$9),NA()) ->  | E193: 0.06760829754 | G193: =IF(ROW()<$E$3+1,'Calcul courbes'!$C$10,NA()) -> 0.2994068499
A194: -1.16 | B194: 0.06918309709 | C194: =4*ATAN(-'Calcul courbes'!$C$2*B194+SQRT(('Calcul courbes'!$C$2)^2*B194^2+'Calcul courbes'!$C$3)) -> 0.2898394913 | D194: =IF(ROW()>$E$3+1,('Calcul courbes'!$C$8*LOG(B194)+'Calcul courbes'!$C$9),NA()) ->  | E194: 0.06918309709 | G194: =IF(ROW()<$E$3+1,'Calcul courbes'!$C$10,NA()) -> 0.2994068499
A195: -1.15 | B195: 0.07079457844 | C195: =4*ATAN(-'Calcul courbes'!$C$2*B195+SQRT(('Calcul courbes'!$C$2)^2*B195^2+'Calcul courbes'!$C$3)) -> 0.2896335346 | D195: =IF(ROW()>$E$3+1,('Calcul courbes'!$C$8*LOG(B195)+'Calcul courbes'!$C$9),NA()) ->  | E195: 0.07079457844 | G195: =IF(ROW()<$E$3+1,'Calcul courbes'!$C$10,NA()) -> 0.2994068499
A196: -1.14 | B196: 0.07244359601 | C196: =4*ATAN(-'Calcul courbes'!$C$2*B196+SQRT(('Calcul courbes'!$C$2)^2*B196^2+'Calcul courbes'!$C$3)) -> 0.2894229357 | D196: =IF(ROW()>$E$3+1,('Calcul courbes'!$C$8*LOG(B196)+'Calcul courbes'!$C$9),NA()) ->  | E196: 0.07244359601 | G196: =IF(ROW()<$E$3+1,'Calcul courbes'!$C$10,NA()) -> 0.2994068499
A197: -1.13 | B197: 0.07413102413 | C197: =4*ATAN(-'Calcul courbes'!$C$2*B197+SQRT(('Calcul courbes'!$C$2)^2*B197^2+'Calcul courbes'!$C$3)) -> 0.2892075938 | D197: =IF(ROW()>$E$3+1,('Calcul courbes'!$C$8*LOG(B197)+'Calcul courbes'!$C$9),NA()) ->  | E197: 0.07413102413 | G197: =IF(ROW()<$E$3+1,'Calcul courbes'!$C$10,NA()) -> 0.2994068499
A198: -1.12 | B198: 0.0758577575 | C198: =4*ATAN(-'Calcul courbes'!$C$2*B198+SQRT(('Calcul courbes'!$C$2)^2*B198^2+'Calcul courbes'!$C$3)) -> 0.2889874062 | D198: =IF(ROW()>$E$3+1,('Calcul courbes'!$C$8*LOG(B198)+'Calcul courbes'!$C$9),NA()) ->  | E198: 0.0758577575 | G198: =IF(ROW()<$E$3+1,'Calcul courbes'!$C$10,NA()) -> 0.2994068499
A199: -1.11 | B199: 0.07762471166 | C199: =4*ATAN(-'Calcul courbes'!$C$2*B199+SQRT(('Calcul courbes'!$C$2)^2*B199^2+'Calcul courbes'!$C$3)) -> 0.2887622679 | D199: =IF(ROW()>$E$3+1,('Calcul courbes'!$C$8*LOG(B199)+'Calcul courbes'!$C$9),NA()) ->  | E199: 0.07762471166 | G199: =IF(ROW()<$E$3+1,'Calcul courbes'!$C$10,NA()) -> 0.2994068499
A200: -1.1 | B200: 0.07943282347 | C200: =4*ATAN(-'Calcul courbes'!$C$2*B200+SQRT(('Calcul courbes'!$C$2)^2*B200^2+'Calcul courbes'!$C$3)) -> 0.288532072 | D200: =IF(ROW()>$E$3+1,('Calcul courbes'!$C$8*LOG(B200)+'Calcul courbes'!$C$9),NA()) ->  | E200: 0.07943282347 | G200: =IF(ROW()<$E$3+1,'Calcul courbes'!$C$10,NA()) -> 0.2994068499
A201: -1.09 | B201: 0.08128305162 | C201: =4*ATAN(-'Calcul courbes'!$C$2*B201+SQRT(('Calcul courbes'!$C$2)^2*B201^2+'Calcul courbes'!$C$3)) -> 0.2882967095 | D201: =IF(ROW()>$E$3+1,('Calcul courbes'!$C$8*LOG(B201)+'Calcul courbes'!$C$9),NA()) ->  | E201: 0.08128305162 | G201: =IF(ROW()<$E$3+1,'Calcul courbes'!$C$10,NA()) -> 0.2994068499
A202: -1.08 | B202: 0.08317637711 | C202: =4*ATAN(-'Calcul courbes'!$C$2*B202+SQRT(('Calcul courbes'!$C$2)^2*B202^2+'Calcul courbes'!$C$3)) -> 0.2880560693 | D202: =IF(ROW()>$E$3+1,('Calcul courbes'!$C$8*LOG(B202)+'Calcul courbes'!$C$9),NA()) ->  | E202: 0.08317637711 | G202: =IF(ROW()<$E$3+1,'Calcul courbes'!$C$10,NA()) -> 0.2994068499
A203: -1.07 | B203: =10^A203 -> 0.08511380382 | C203: =4*ATAN(-'Calcul courbes'!$C$2*B203+SQRT(('Calcul courbes'!$C$2)^2*B203^2+'Calcul courbes'!$C$3)) -> 0.287810038 | D203: =IF(ROW()>$E$3+1,('Calcul courbes'!$C$8*LOG(B203)+'Calcul courbes'!$C$9),NA()) ->  | E203: =IF(ROW()<$F$3+1,B203,NA()) -> 0.08511380382 | F203: =IF(ROW()>$E$3+1,E203,NA()) ->  | G203: =IF(ROW()<$E$3+1,'Calcul courbes'!$C$10,NA()) -> 0.2994068499 | H203: =IF(ROW()>$F$3-1,0,NA()) ->  | I203: =IF(ROW()=$F$3-1,0,NA()) -> 
A204: -1.06 | B204: 0.087096359 | C204: =4*ATAN(-'Calcul courbes'!$C$2*B204+SQRT(('Calcul courbes'!$C$2)^2*B204^2+'Calcul courbes'!$C$3)) -> 0.2875585002 | D204: =IF(ROW()>$E$3+1,('Calcul courbes'!$C$8*LOG(B204)+'Calcul courbes'!$C$9),NA()) ->  | E204: 0.087096359 | G204: =IF(ROW()<$E$3+1,'Calcul courbes'!$C$10,NA()) -> 0.2994068499
... 406 more rows
